Workbook

Sheet Planilha Resumo
D1: Data base : Out/2024
D2: Período de referência:
D3: SINAPI Jun/2024
D4: ORSE Jul/2024
D5: SICRO Jul/2024
D6: EMBASA Jul/2024
A8: Itens | B8: Serviços | C8: Unidade | D8: Quantidade | E8: Preço Unitário (R$) | F8: Preço (R$) | H8: Hectares | I8: 10% Hectares | J8: Hectares
A9: Item 1 - DF, GO, MT e TO | B9: Serviços de apoio à fiscalização. Veiculo Pick-up Cab.dupla 2.8 4x4 Diesel. Engenheiro,Técnico e Auxiliar | C9: Semana | D9: 96 | E9: =F9/D9 -> 16581.01313 | F9: ='CRO1_Ins-Pro'!H22 -> 1591777.26 | G9: =F9*0.1 -> 159177.726 | H9: 30000 | I9: =H9*0.1 -> 3000 | J9: 500
A10: Item 2 - MG e BA | B10: Serviços de apoio à fiscalização. Veiculo Pick-up Cab.dupla 2.8 4x4 Diesel. Engenheiro,Técnico e Auxiliar | C10: Semana | D10: 96 | E10: =F10/D10 -> 16581.01313 | F10: ='CRO1_Ins-Pro'!I22 -> 1591777.26 | G10: =F10*0.1 -> 159177.726 | H10: 45000 | I10: =H10*0.1 -> 4500 | J10: 500
A11: Item 3 - SE, AL, PE, PB, RN, CE e PI | B11: Serviços de apoio à fiscalização. Veiculo Pick-up Cab.dupla 2.8 4x4 Diesel. Engenheiro,Técnico e Auxiliar | C11: Semana | D11: 96 | E11: 16581.01313 | F11: ='CRO1_Ins-Pro'!J22 -> 1591777.26 | G11: 159177.726 | H11: 55000 | I11: =H11*0.1 -> 5500 | J11: 500
A12: Item 4 - MA, PA e AP | B12: Serviços de apoio à fiscalização. Veiculo Pick-up Cab.dupla 2.8 4x4 Diesel. Engenheiro,Técnico e Auxiliar | C12: Semana | D12: 96 | E12: 16581.01313 | F12: ='CRO1_Ins-Pro'!K22 -> 1591777.26 | G12: 159177.726 | H12: 40000 | I12: =H12*0.1 -> 4000 | J12: 500
E13: Preço Total (R$) | F13: ='CRO1_Ins-Pro'!L22 -> 6367109.04 | G13: =SUM(G9:G12) -> 636710.904 | H13: =SUM(H9:H12) -> 170000 | I13: =SUM(I9:I12) -> 17000 | J13: =I13*0.1 -> 1700
A14: OBSERVAÇÃO:
A15: Grupo - Engenheiro Júnior, Técnico ambiental/geoprocessamento, Auxiliar de topografia/Auxiliar
A16: *Engenheiro Pleno e Secretária auxiliam e coordena os grupos.
H21: Categoria | I21: Unidade | J21: Quantidade
H22: Engenheiro pleno | I22: Mês | J22: 24
H23: Engenheiro júnior | I23: Mês | J23: 96
H24: Técnico ambiental/geoprocessamento | I24: Mês | J24: 96
H25: Auxiliar/Auxiliar de topografia | I25: Mês | J25: 96
H26: Auxiliar administrativo | I26: Mês | J26: 24
H30: Equipamento | I30: Unidade | J30: Quantidade
H31: Pick-up Cab.dupla 2.8 4x4 Diesel | I31: Mês | J31: 4
H32: Aparelho GPS Garmin MAP6 | I32: Mês | J32: 4
H33: Aparelho Kit Receptores GNSS RTK | I33: Mês | J33: 4
H34: Drone | I34: Mês | J34: 4
H35: Notebook - (Core i7, 4Gb RAM, 1Tb) | I35: Mês | J35: 4
H37: Descrição | I37: Unidade | J37: Quantidade
H38: Pick-up Cab. Dupla 2.8 4x4 Diesel | I38: Dias | J38: 1920
H39: Aparelho GPS Garmin MAP6 | I39: Mês | J39: 96
H40: Aparelho Kit Receptores GNSS RTK | I40: Mês | J40: 96
H41: Drone | I41: Mês | J41: 96
H42: Notebook - (Core i7, 4Gb RAM, 1Tb) | I42: Mês | J42: 96

Sheet PFP
B1: PROPOSTA FINANCEIRA DO PROJETO | L1: CODIGO:
L2: PFP
B3: NOME DA CONSULTORA:
B5: PROJETO: | H5: CONTRATANTE: | L5: BASE: | X5: Memória de Cálculo Equipe Técnica
B6: Apoio à fiscalização e supervisão técnica dos serviços de revitalização na SEDE | H6: CODEVASF (SEDE) | L6: 2024-10-01 | X6: Atividades e Prazos
B7: Base | C7: Cod2 | D7: Cod3 | E7: Código | F7: Categoria / Insumo | G7: Uni | H7: Qde | I7: CUD | J7: PU | K7: FatorK | L7: CT | M7: PT | N7: Encargos COMP E ADICIONAIS | O7: SOCIAIS | P7: TOTAIS | R7: Encargos Comp e Adicionais | X7: Profissional | Y7: Quantidade | Z7: Prazo Mês | AA7: Lotação
G8: mês | H8: ='CRO1_Ins-Pro'!D5 -> 0 | I8: 0 | J8: =ROUND(K8*I8,2) -> 0 | K8: 0 | L8: =ROUND(H8*I8,2) -> 0 | M8: =ROUND(H8*J8,2) -> 0 | N8: =P8-O8 -> 1026.89 | O8: 13451.98 | P8: 14478.87 | R8: =VLOOKUP(E8,MDO_DNIT!$A:$Z,26,0) ->  | X8: Profissional | Y8: Quantidade | Z8: Prazo Mês | AA8: Lotação
G9: mês | H9: ='CRO1_Ins-Pro'!D6 -> 0 | I9: 0 | J9: 0 | K9: 0 | L9: 0 | M9: 0 | N9: 1030.19 | O9: 11533.74 | P9: 12563.93 | R9: =VLOOKUP(E9,MDO_DNIT!$A:$Z,26,0) ->  | X9: Eng. Coordenador | Y9: 1 | Z9: 12 | AA9: Escritório Goiânia
B10: SICRO | C10: MO1 | D10: P2 | E10: P8066 | F10: Engenheiro pleno (P8066) | G10: mês | H10: ='CRO1_Ins-Pro'!D7 -> 24 | I10: =VLOOKUP(E10,MDO_DNIT!$A:$Z,4,0) -> 12629.6 | J10: =ROUND(K10*I10,2) -> 26889.68 | K10: ='PFP2.1_FatorKa'!$E$36 -> 2.1291 | L10: =ROUND(H10*I10,2) -> 303110.4 | M10: =ROUND(H10*J10,2) -> 645352.32 | N10: 1030.19 | O10: 8980.37 | P10: 10010.56 | R10: =VLOOKUP(E10,MDO_DNIT!$A:$Z,26,0) -> 1071.71 | X10: Engenheiro pleno (P8066) | Y10: 1 | Z10: 24 | AA10: Coordenador Geral
B11: SICRO | C11: MO1 | D11: P3 | E11: P8065 | F11: Engenheiro júnior (P8065) | G11: mês | H11: ='CRO1_Ins-Pro'!D8 -> 96 | I11: =VLOOKUP(E11,MDO_DNIT!$A:$Z,4,0) -> 12002 | J11: =ROUND(K11*I11,2) -> 25553.46 | K11: ='PFP2.1_FatorKa'!$E$36 -> 2.1291 | L11: =ROUND(H11*I11,2) -> 1152192 | M11: =ROUND(H11*J11,2) -> 2453132.16 | N11: 1030.19 | O11: 8799.37 | P11: 9829.56 | R11: =VLOOKUP(E11,MDO_DNIT!$A:$Z,26,0) -> 1071.7 | X11: Engenheiro júnior (P8065) | Y11: 4 | Z11: 24 | AA11: Coordenador de Campo - Analise e t
B12: SICRO | C12: MO1 | D12: T1 | E12: P8143 | F12: Técnico ambiental/geoprocessamento (P8143) | G12: mês | H12: ='CRO1_Ins-Pro'!D9 -> 96 | I12: =VLOOKUP(E12,MDO_DNIT!$A:$Z,4,0) -> 2911.08 | J12: 6197.98 | K12: ='PFP2.1_FatorKa'!$E$36 -> 2.1291 | L12: 279463.68 | M12: 595006.08 | N12: 1070.18 | O12: 2450.48 | P12: 3520.66 | R12: =VLOOKUP(E12,MDO_DNIT!$A:$Z,26,0) -> 1119.22 | X12: Técnico ambiental/geoprocessamento (P8143) | Y12: 4 | Z12: 24 | AA12: Técnico de campo
B13: SICRO | C13: MO1 | D13: T3 | E13: P8028 | F13: Auxiliar de topografia/Auxiliar (P8028) | G13: mês | H13: ='CRO1_Ins-Pro'!D10 -> 96 | I13: =VLOOKUP(E13,MDO_DNIT!$A:$Z,4,0) -> 1583.76 | J13: 3371.98 | K13: ='PFP2.1_FatorKa'!$E$36 -> 2.1291 | L13: 152040.96 | M13: 323710.08 | N13: 1070.18 | O13: 2450.48 | P13: 3520.66 | R13: =VLOOKUP(E13,MDO_DNIT!$A:$Z,26,0) -> 1203.05 | X13: Auxiliar de topografia/Auxiliar (P8028) | Y13: 4 | Z13: 24 | AA13: Auxiliar de campo
B14: SICRO | C14: MO1 | D14: A3 | E14: P8026 | F14: Auxiliar administrativo (P8026) | G14: mês | H14: ='CRO1_Ins-Pro'!D11 -> 24 | I14: =VLOOKUP(E14,MDO_DNIT!$A:$Z,4,0) -> 1880.26 | J14: =ROUND(K14*I14,2) -> 4003.26 | K14: ='PFP2.1_FatorKa'!$E$36 -> 2.1291 | L14: =ROUND(H14*I14,2) -> 45126.24 | M14: =ROUND(H14*J14,2) -> 96078.24 | N14: 1068.97 | O14: 1887.43 | P14: 2956.4 | R14: =VLOOKUP(E14,MDO_DNIT!$A:$Z,26,0) -> 1152.19 | X14: Auxiliar administrativo (P8026) | Y14: 1 | Z14: 24 | AA14: Apoio ao coordenador
B15: SICRO | C15: EC | D15: ECA | F15: Encargos Comp. e Adicionais | G15: mês | H15: ='CRO1_Ins-Pro'!D12 -> 336 | I15: =AVERAGE(R10:R14) -> 1123.574 | J15: =ROUND(K15*I15,2) -> 1351.21 | K15: =PFP3_FatorKd!$E$17 -> 1.2026 | L15: =ROUND(H15*I15,2) -> 377520.86 | M15: 454006.56
B16: PROP | C16: EC | D16: AT2 | F16: Auxilio Transporte Técnicos | G16: mês | H16: ='CRO1_Ins-Pro'!D13 -> 0 | I16: Já incluso* | J16: 0 | K16: =PFP3_FatorKd!$E$17 -> 1.2026 | L16: 0 | M16: 0
B17: PROP | C17: EC | D17: AT3 | F17: Auxilio Transporte Secretária | G17: mês | H17: ='CRO1_Ins-Pro'!D14 -> 0 | I17: Já Incluso* | J17: 0 | K17: =PFP3_FatorKd!$E$17 -> 1.2026 | L17: 0 | M17: 0
B18: CODE | C18: LO | D18: V1 | F18: Diárias | G18: dia | H18: ='CRO1_Ins-Pro'!D15 -> 3456 | I18: ='CPU HOSPEDAGEM'!C19 -> 219.8507778 | J18: 264.39 | K18: =PFP3_FatorKd!$E$17 -> 1.2026 | L18: =ROUND(H18*I18,2) -> 759804.29 | M18: =ROUND(H18*J18,2) -> 913731.84
B19: CODE | C19: LO | D19: V2 | F19: Pick-up Cab.dupla 2.8 4x4 Diesel | G19: dia | H19: ='CRO1_Ins-Pro'!D16 -> 1920 | I19: ='CPU-VEICULO_PickUp'!C11 -> 325.6268258 | J19: 391.6 | K19: =PFP3_FatorKd!$E$17 -> 1.2026 | L19: 625203.51 | M19: =ROUND(H19*J19,2) -> 751872
B20: PROP | C20: LO | D20: V3 | F20: Passagens Aéreas (ida e volta) | G20: un | H20: ='CRO1_Ins-Pro'!D17 -> 36 | I20: ='Cotação Voos'!B104 -> 1277.416667 | J20: 1536.22 | K20: =PFP3_FatorKd!$E$17 -> 1.2026 | L20: 45987 | M20: 55303.92
B21: PROP | C21: LO | D21: V4 | F21: Equipamentos (Notebook, RTK, Drone, GPS) | G21: mês | H21: ='CRO1_Ins-Pro'!D18 -> 96 | I21: ='PFS-X -Equipamentos'!F18 -> 683.5515604 | J21: =ROUND(K21*I21,2) -> 822.04 | K21: =PFP3_FatorKd!$E$17 -> 1.2026 | L21: =ROUND(H21*I21,2) -> 65620.95 | M21: =ROUND(H21*J21,2) -> 78915.84
H22: ='CRO1_Ins-Pro'!D19 -> 0 | I22: 0 | J22: 0 | K22: 0 | L22: 0 | M22: 0
H23: ='CRO1_Ins-Pro'!D20 -> 0 | I23: 0 | J23: 0 | K23: 0 | L23: 0 | M23: =ROUND(H23*J23,2) -> 0
B25: TOTAL DOS CUSTOS DIRETOS | J25: =SUM(L8:L24) -> 3806069.89
B26: TOTAL DOS ENCARGOS E DESPESAS DIVERSAS | J26: =J27-J25 -> 2561039.15
B27: TOTAL DA PROPOSTA A PREÇO GLOBAL | J27: =SUM(M8:M23) -> 6367109.04
B28: TOTAL DA PROPOSTA A PREÇO UNITÁRIO
B29: TOTAL DA PROPOSTA | J29: =J27+J28 -> 6367109.04
B30: OBSERVAÇÃO:
B31: *Encargos Complementares e adicionais já incluem auxílio transporte
B32: Alocar os Insumos MO, com respectivo FatorK, dentro da categoria de vínculo contratual (celetista, autonomo, societario)
B33: Uni - unidade de medição do insumo;
B34: Qde - Quantidade do Insumo (não pode ocorrer alteração pela Licitante)
B35: CUD - Custo Unitário Direto do Insumo (sem encargos, taxas e impostos, valor não pode ser maior que o Orçado pela Codevasf)
B36: CT - Custo Total (sem encargos, taxas e impostos) - CT = Qde x CUD
B37: FatorK - Taxa de Ressarcimento de Despesas e Encargos (detalhar composição nas Planilhas "PFP2.1", "PFP2.2", "PFP3")
B38: PU - Preço Unitário do Insumo (incluído encargos, taxas e impostos) - PU = CUD x FatorK
B39: PT - Preço Total do Insumo (incluído encargos, taxas e impostos) - PT = Qde x PU
B40: P - Profissionais nível superior nas áreas de Engenharia, Química, Arquitetura, Agronomia e Veterinária, conforme disposições da Lei 4.950-A/66
B41: S - Profissionais de nível superior nas demais áreas de atuação, incluindo Arqueólogo, Biólogo, Geógrafo e Sociólogo
B42: T - Profissionais de nível médio técnico nas diversas áreas de atuação
B43: A - Profissionais de nível médio de apoio técnico-administrativo
B45: Observações:

Sheet PFP2.1_FatorKa
A1: DETALHAMENTO DOS ENCARGOS SOCIAIS: Ka | F1: CODIGO:
F2: PFP-2.1
A3: NOME DA CONSULTORA:
A5: PROJETO: | C5: CONTRATANTE: | F5: =PFP!L5 -> BASE:
A6: =PFP!B6 -> Apoio à fiscalização e supervisão técnica dos serviços de revitalização na SEDE | C6: CODEVASF (SEDE) | F6: SINAPI/DF Jun/2024
A7: Cod | B7: DESCRIÇÃO | E7: % | F7: R$
A8: A | B8: ENCARGOS SOCIAIS BÁSICOS | E8: =ROUND(SUM(E9:E17),4) -> 0.378 | F8: =ROUND(E8*SUMIF(PFP!$C$8:$C$24,"MO1",PFP!$L$8:$L$24),2) -> 730270.78
A9: A1 | B9: INSS | E9: 0.2 | F9: =ROUND(E9*SUMIF(PFP!$C$8:$C$24,"MO1",PFP!$L$8:$L$24),2) -> 386386.66
A10: A2 | B10: SESI | E10: 0.015 | F10: =ROUND(E10*SUMIF(PFP!$C$8:$C$24,"MO1",PFP!$L$8:$L$24),2) -> 28979
A11: A3 | B11: SENAI | E11: 0.01 | F11: =ROUND(E11*SUMIF(PFP!$C$8:$C$24,"MO1",PFP!$L$8:$L$24),2) -> 19319.33
A12: A4 | B12: INCRA | E12: 0.002 | F12: =ROUND(E12*SUMIF(PFP!$C$8:$C$24,"MO1",PFP!$L$8:$L$24),2) -> 3863.87
A13: A5 | B13: SEBRAE | E13: 0.006 | F13: =ROUND(E13*SUMIF(PFP!$C$8:$C$24,"MO1",PFP!$L$8:$L$24),2) -> 11591.6
A14: A6 | B14: Salário Educação | E14: 0.025 | F14: =ROUND(E14*SUMIF(PFP!$C$8:$C$24,"MO1",PFP!$L$8:$L$24),2) -> 48298.33
A15: A7 | B15: Seguro Contra Acidentes de Trabalho | E15: 0.03 | F15: =ROUND(E15*SUMIF(PFP!$C$8:$C$24,"MO1",PFP!$L$8:$L$24),2) -> 57958
A16: A8 | B16: FGTS | E16: 0.08 | F16: =ROUND(E16*SUMIF(PFP!$C$8:$C$24,"MO1",PFP!$L$8:$L$24),2) -> 154554.66
A17: A9 | B17: SECONCI | E17: 0.01 | F17: =ROUND(E17*SUMIF(PFP!$C$8:$C$24,"MO1",PFP!$L$8:$L$24),2) -> 19319.33
A18: B | B18: ENCARGOS SOCIAIS QUE RECEBEM INCIDÊNCIA DE "A" | E18: =ROUND(SUM(E19:E25),4) -> 0.1624 | F18: =ROUND(E18*SUMIF(PFP!$C$8:$C$24,"MO1",PFP!$L$8:$L$24),2) -> 313745.96
A19: B3 | B19: Auxílio Enfermidade | E19: 0.0064 | F19: =ROUND(E19*SUMIF(PFP!$C$8:$C$24,"MO1",PFP!$L$8:$L$24),2) -> 12364.37
A20: B4 | B20: 13º Salário | E20: 0.0833 | F20: =ROUND(E20*SUMIF(PFP!$C$8:$C$24,"MO1",PFP!$L$8:$L$24),2) -> 160930.04
A21: B5 | B21: Licença Paternidade | E21: 0.0004 | F21: =ROUND(E21*SUMIF(PFP!$C$8:$C$24,"MO1",PFP!$L$8:$L$24),2) -> 772.77
A22: B6 | B22: Faltas Justificadas | E22: 0.0056 | F22: =ROUND(E22*SUMIF(PFP!$C$8:$C$24,"MO1",PFP!$L$8:$L$24),2) -> 10818.83
A23: B8 | B23: Auxílio Acidente de Trabalho | E23: 0.0008 | F23: =ROUND(E23*SUMIF(PFP!$C$8:$C$24,"MO1",PFP!$L$8:$L$24),2) -> 1545.55
A24: B9 | B24: Férias Gozadas | E24: 0.0656 | F24: =ROUND(E24*SUMIF(PFP!$C$8:$C$24,"MO1",PFP!$L$8:$L$24),2) -> 126734.82
A25: B10 | B25: Salário Maternidade | E25: 0.0003 | F25: =ROUND(E25*SUMIF(PFP!$C$8:$C$24,"MO1",PFP!$L$8:$L$24),2) -> 579.58
A26: C | B26: ENCARGOS SOCIAIS QUE NÃO RECEBEM INCIDÊNCIA DE "A" | E26: =ROUND(SUM(E27:E31),4) -> 0.0957 | F26: =ROUND(E26*SUMIF(PFP!$C$8:$C$24,"MO1",PFP!$L$8:$L$24),2) -> 184886.01
A27: C1 | B27: Aviso Prévio Indenizado | E27: 0.0324 | F27: =ROUND(E27*SUMIF(PFP!$C$8:$C$24,"MO1",PFP!$L$8:$L$24),2) -> 62594.64
A28: C2 | B28: Aviso Prévio Trabalhado | E28: 0.0008 | F28: =ROUND(E28*SUMIF(PFP!$C$8:$C$24,"MO1",PFP!$L$8:$L$24),2) -> 1545.55
A29: C3 | B29: Férias Indenizadas | E29: 0.0359 | F29: =ROUND(E29*SUMIF(PFP!$C$8:$C$24,"MO1",PFP!$L$8:$L$24),2) -> 69356.4
A30: C4 | B30: Depósito Rescisão Sem Justa Causa | E30: 0.0239 | F30: =ROUND(E30*SUMIF(PFP!$C$8:$C$24,"MO1",PFP!$L$8:$L$24),2) -> 46173.21
A31: C5 | B31: Indenização Adicional | E31: 0.0027 | F31: =ROUND(E31*SUMIF(PFP!$C$8:$C$24,"MO1",PFP!$L$8:$L$24),2) -> 5216.22
A32: D | B32: REINCIDÊNCIAS | E32: =ROUND(SUM(E33:E34),4) -> 0.0643 | F32: =ROUND(E32*SUMIF(PFP!$C$8:$C$24,"MO1",PFP!$L$8:$L$24),2) -> 124223.31
A33: D1 | B33: Reincidência de "A" sobre "B" | E33: 0.0614 | F33: =ROUND(E33*SUMIF(PFP!$C$8:$C$24,"MO1",PFP!$L$8:$L$24),2) -> 118620.7
A34: D2 | B34: Reincidência de "A" sobre Aviso Prévio Trabalhado e reincidência do FGTS sobre Aviso Prévio Indenizado | E34: 0.0029 | F34: =ROUND(E34*SUMIF(PFP!$C$8:$C$24,"MO1",PFP!$L$8:$L$24),2) -> 5602.61
A35: K1a | B35: ENCARGOS SOCIAIS | E35: =ROUND(E8+E18+E26+E32,4) -> 0.7004 | F35: =ROUND(E35*SUMIF(PFP!$C$8:$C$24,"MO1",PFP!$L$8:$L$24),2) -> 1353126.07
A36: Ka | B36: TAXA DE RESSARCIMENTO DE DESPESAS E ENCARGOS SOBRE MO1 | E36: =ROUND((1+E35+PFP3_FatorKd!E13)*(1+PFP3_FatorKd!E12)*(1+PFP3_FatorKd!E8),4) -> 2.1291
A37: OBSERVAÇÃO: CELETISTAS E EQUIVALENTES
A38: 1 - DISCRIMINAR OS ENCARGOS SOCIAIS COM SEUS RESPECTIVOS PERCENTUAS TOTALIZANDO OS MESMOS.
A39: 2 - APLICAR O % TOTAL P/ CALCULAR OS E. SOCIAIS INCIDENTES NA MÃO-DE-OBRA CELETISTAS
A40: Ka - Taxa de Ressarcimento de Despesas e Encargos sobre a Mão de Obra CELETISTA (incide apenas no Insumo Codigo MO1)
A41: Ka = (1 + K1 + K2) x (1 + K3) x (1 + K4)

Sheet PFP2.2_FatorKb
A1: DETALHAMENTO DOS ENCARGOS SOCIAIS: Kb | F1: CODIGO:
F2: PFP-2.2
A3: NOME DA CONSULTORA:
A5: PROJETO: | C5: CONTRATANTE: | F5: ='PFP2.1_FatorKa'!F5 -> BASE:
A6: =PFP!B6 -> Apoio à fiscalização e supervisão técnica dos serviços de revitalização na SEDE | C6: CODEVASF (SEDE) | F6: ='PFP2.1_FatorKa'!F6 -> SINAPI/DF Jun/2024
A7: Cod | B7: DESCRIÇÃO | E7: % | F7: R$
A8: A | B8: ENCARGOS SOCIAIS BÁSICOS | E8: =ROUND(SUM(E9:E16),4) -> 0.2 | F8: =ROUND(E8*SUMIF(PFP!$C$8:$C$24,"MO2",PFP!$L$8:$L$24),2) -> 0
A9: A1 | B9: INSS | E9: 0.2 | F9: =ROUND(E9*SUMIF(PFP!$C$8:$C$24,"MO2",PFP!$L$8:$L$24),2) -> 0
A10: A2 | B10: SESI | E10: 0 | F10: =ROUND(E10*SUMIF(PFP!$C$8:$C$24,"MO2",PFP!$L$8:$L$24),2) -> 0
A11: A3 | B11: SENAI | E11: 0 | F11: =ROUND(E11*SUMIF(PFP!$C$8:$C$24,"MO2",PFP!$L$8:$L$24),2) -> 0
A12: A4 | B12: INCRA | E12: 0 | F12: =ROUND(E12*SUMIF(PFP!$C$8:$C$24,"MO2",PFP!$L$8:$L$24),2) -> 0
A13: A5 | B13: SEBRAE | E13: 0 | F13: =ROUND(E13*SUMIF(PFP!$C$8:$C$24,"MO2",PFP!$L$8:$L$24),2) -> 0
A14: A6 | B14: Salário Educação | E14: 0 | F14: =ROUND(E14*SUMIF(PFP!$C$8:$C$24,"MO2",PFP!$L$8:$L$24),2) -> 0
A15: A7 | B15: Seguro Contra Acidentes de Trabalho | E15: 0 | F15: =ROUND(E15*SUMIF(PFP!$C$8:$C$24,"MO2",PFP!$L$8:$L$24),2) -> 0
A16: A8 | B16: FGTS | E16: 0 | F16: =ROUND(E16*SUMIF(PFP!$C$8:$C$24,"MO2",PFP!$L$8:$L$24),2) -> 0
A17: B | B17: ENCARGOS SOCIAIS QUE RECEBEM INCIDÊNCIA DE "A" | E17: =ROUND(SUM(E18:E24),4) -> 0 | F17: =ROUND(E17*SUMIF(PFP!$C$8:$C$24,"MO2",PFP!$L$8:$L$24),2) -> 0
A18: B3 | B18: Auxílio Enfermidade | E18: 0 | F18: =ROUND(E18*SUMIF(PFP!$C$8:$C$24,"MO2",PFP!$L$8:$L$24),2) -> 0
A19: B4 | B19: 13º Salário | E19: 0 | F19: =ROUND(E19*SUMIF(PFP!$C$8:$C$24,"MO2",PFP!$L$8:$L$24),2) -> 0
A20: B5 | B20: Licença Paternidade | E20: 0 | F20: =ROUND(E20*SUMIF(PFP!$C$8:$C$24,"MO2",PFP!$L$8:$L$24),2) -> 0
A21: B6 | B21: Faltas Justificadas | E21: 0 | F21: =ROUND(E21*SUMIF(PFP!$C$8:$C$24,"MO2",PFP!$L$8:$L$24),2) -> 0
A22: B8 | B22: Auxílio Acidente de Trabalho | E22: 0 | F22: =ROUND(E22*SUMIF(PFP!$C$8:$C$24,"MO2",PFP!$L$8:$L$24),2) -> 0
A23: B9 | B23: Férias Gozadas | E23: 0 | F23: =ROUND(E23*SUMIF(PFP!$C$8:$C$24,"MO2",PFP!$L$8:$L$24),2) -> 0
A24: B10 | B24: Salário Maternidade | E24: 0 | F24: =ROUND(E24*SUMIF(PFP!$C$8:$C$24,"MO2",PFP!$L$8:$L$24),2) -> 0
A25: C | B25: ENCARGOS SOCIAIS QUE NÃO RECEBEM INCIDÊNCIA DE "A" | E25: =ROUND(SUM(E26:E30),4) -> 0 | F25: =ROUND(E25*SUMIF(PFP!$C$8:$C$24,"MO2",PFP!$L$8:$L$24),2) -> 0
A26: C1 | B26: Aviso Prévio Indenizado | E26: 0 | F26: =ROUND(E26*SUMIF(PFP!$C$8:$C$24,"MO2",PFP!$L$8:$L$24),2) -> 0
A27: C2 | B27: Aviso Prévio Trabalhado | E27: 0 | F27: =ROUND(E27*SUMIF(PFP!$C$8:$C$24,"MO2",PFP!$L$8:$L$24),2) -> 0
A28: C3 | B28: Férias Indenizadas | E28: 0 | F28: =ROUND(E28*SUMIF(PFP!$C$8:$C$24,"MO2",PFP!$L$8:$L$24),2) -> 0
A29: C4 | B29: Depósito Rescisão Sem Justa Causa | E29: 0 | F29: =ROUND(E29*SUMIF(PFP!$C$8:$C$24,"MO2",PFP!$L$8:$L$24),2) -> 0
A30: C5 | B30: Indenização Adicional | E30: 0 | F30: =ROUND(E30*SUMIF(PFP!$C$8:$C$24,"MO2",PFP!$L$8:$L$24),2) -> 0
A31: D | B31: REINCIDÊNCIAS | E31: =ROUND(SUM(E32:E33),4) -> 0 | F31: =ROUND(E31*SUMIF(PFP!$C$8:$C$24,"MO2",PFP!$L$8:$L$24),2) -> 0
A32: D1 | B32: Reincidência de "A" sobre "B" | E32: =ROUND(E8*E17,4) -> 0 | F32: =ROUND(E32*SUMIF(PFP!$C$8:$C$24,"MO2",PFP!$L$8:$L$24),2) -> 0
A33: D2 | B33: Reincidência de "A" sobre Aviso Prévio Trabalhado e reincidência do FGTS sobre Aviso Prévio Indenizado | E33: =ROUND((E27*E8)+(E26*E16),4) -> 0 | F33: =ROUND(E33*SUMIF(PFP!$C$8:$C$24,"MO2",PFP!$L$8:$L$24),2) -> 0
A34: K1b | B34: ENCARGOS SOCIAIS | E34: =ROUND(E8+E17+E25+E31,4) -> 0.2 | F34: =ROUND(E34*SUMIF(PFP!$C$8:$C$24,"MO2",PFP!$L$8:$L$24),2) -> 0
A35: Kb | B35: TAXA DE RESSARCIMENTO DE DESPESAS E ENCARGOS SOBRE MO2 | E35: =ROUND((1+E34+PFP3_FatorKd!E13)*(1+PFP3_FatorKd!E12)*(1+PFP3_FatorKd!E8),4) -> 1.5273
A36: OBSERVAÇÃO: AUTÔNOMOS E EQUIVALENTES
A37: 1 - DISCRIMINAR OS ENCARGOS SOCIAIS COM SEUS RESPECTIVOS PERCENTUAS TOTALIZANDO OS MESMOS.
A38: 2 - APLICAR O % TOTAL P/ CALCULAR OS E. SOCIAIS INCIDENTES NA MÃO-DE-OBRA AUTONÔMOS
A39: Kb - Taxa de Ressarcimento de Despesas e Encargos sobre a Mão de Obra AUTONÔMA (incide apenas no Insumo Codigo MO2)
A40: Kb = (1 + K1 + K2) x (1 + K3) x (1 + K4)

Sheet PFP2.3_FatorKc
A1: DETALHAMENTO DOS ENCARGOS SOCIAIS: Kc | F1: CODIGO:
F2: PFP-2.3
A3: NOME DA CONSULTORA:
A5: PROJETO: | C5: CONTRATANTE: | F5: ='PFP2.2_FatorKb'!F5 -> BASE:
A6: =PFP!B6 -> Apoio à fiscalização e supervisão técnica dos serviços de revitalização na SEDE | C6: CODEVASF (SEDE) | F6: ='PFP2.2_FatorKb'!F6 -> SINAPI/DF Jun/2024
A7: Cod | B7: DESCRIÇÃO | E7: % | F7: R$
A8: A | B8: ENCARGOS SOCIAIS BÁSICOS | E8: =SUM(E9:E16) -> 0 | F8: =ROUND(E8*SUMIF(PFP!$C$8:$C$24,"MO3",PFP!$L$8:$L$24),2) -> 0
A9: A1 | B9: INSS | E9: 0 | F9: =ROUND(E8*SUMIF(PFP!$C$8:$C$24,"MO3",PFP!$L$8:$L$24),2) -> 0
A10: A2 | B10: SESI | E10: 0 | F10: =ROUND(E9*SUMIF(PFP!$C$8:$C$24,"MO3",PFP!$L$8:$L$24),2) -> 0
A11: A3 | B11: SENAI | E11: 0 | F11: =ROUND(E10*SUMIF(PFP!$C$8:$C$24,"MO3",PFP!$L$8:$L$24),2) -> 0
A12: A4 | B12: INCRA | E12: 0 | F12: =ROUND(E11*SUMIF(PFP!$C$8:$C$24,"MO3",PFP!$L$8:$L$24),2) -> 0
A13: A5 | B13: SEBRAE | E13: 0 | F13: =ROUND(E12*SUMIF(PFP!$C$8:$C$24,"MO3",PFP!$L$8:$L$24),2) -> 0
A14: A6 | B14: Salário Educação | E14: 0 | F14: =ROUND(E13*SUMIF(PFP!$C$8:$C$24,"MO3",PFP!$L$8:$L$24),2) -> 0
A15: A7 | B15: Seguro Contra Acidentes de Trabalho | E15: 0 | F15: =ROUND(E14*SUMIF(PFP!$C$8:$C$24,"MO3",PFP!$L$8:$L$24),2) -> 0
A16: A8 | B16: FGTS | E16: 0 | F16: =ROUND(E15*SUMIF(PFP!$C$8:$C$24,"MO3",PFP!$L$8:$L$24),2) -> 0
A17: B | B17: ENCARGOS SOCIAIS QUE RECEBEM INCIDÊNCIA DE "A" | E17: =ROUND(SUM(E18:E24),4) -> 0 | F17: =ROUND(E17*SUMIF(PFP!$C$8:$C$24,"MO3",PFP!$L$8:$L$24),2) -> 0
A18: B3 | B18: Auxílio Enfermidade | E18: 0 | F18: =ROUND(E18*SUMIF(PFP!$C$8:$C$24,"MO3",PFP!$L$8:$L$24),2) -> 0
A19: B4 | B19: 13º Salário | E19: 0 | F19: =ROUND(E19*SUMIF(PFP!$C$8:$C$24,"MO3",PFP!$L$8:$L$24),2) -> 0
A20: B5 | B20: Licença Paternidade | E20: 0 | F20: =ROUND(E20*SUMIF(PFP!$C$8:$C$24,"MO3",PFP!$L$8:$L$24),2) -> 0
A21: B6 | B21: Faltas Justificadas | E21: 0 | F21: =ROUND(E21*SUMIF(PFP!$C$8:$C$24,"MO3",PFP!$L$8:$L$24),2) -> 0
A22: B8 | B22: Auxílio Acidente de Trabalho | E22: 0 | F22: =ROUND(E22*SUMIF(PFP!$C$8:$C$24,"MO3",PFP!$L$8:$L$24),2) -> 0
A23: B9 | B23: Férias Gozadas | E23: 0 | F23: =ROUND(E23*SUMIF(PFP!$C$8:$C$24,"MO3",PFP!$L$8:$L$24),2) -> 0
A24: B10 | B24: Salário Maternidade | E24: 0 | F24: =ROUND(E24*SUMIF(PFP!$C$8:$C$24,"MO3",PFP!$L$8:$L$24),2) -> 0
A25: C | B25: ENCARGOS SOCIAIS QUE NÃO RECEBEM INCIDÊNCIA DE "A" | E25: =ROUND(SUM(E26:E30),4) -> 0 | F25: =ROUND(E25*SUMIF(PFP!$C$8:$C$24,"MO3",PFP!$L$8:$L$24),2) -> 0
A26: C1 | B26: Aviso Prévio Indenizado | E26: 0 | F26: =ROUND(E26*SUMIF(PFP!$C$8:$C$24,"MO3",PFP!$L$8:$L$24),2) -> 0
A27: C2 | B27: Aviso Prévio Trabalhado | E27: 0 | F27: =ROUND(E27*SUMIF(PFP!$C$8:$C$24,"MO3",PFP!$L$8:$L$24),2) -> 0
A28: C3 | B28: Férias Indenizadas | E28: 0 | F28: =ROUND(E28*SUMIF(PFP!$C$8:$C$24,"MO3",PFP!$L$8:$L$24),2) -> 0
A29: C4 | B29: Depósito Rescisão Sem Justa Causa | E29: 0 | F29: =ROUND(E29*SUMIF(PFP!$C$8:$C$24,"MO3",PFP!$L$8:$L$24),2) -> 0
A30: C5 | B30: Indenização Adicional | E30: 0 | F30: =ROUND(E30*SUMIF(PFP!$C$8:$C$24,"MO3",PFP!$L$8:$L$24),2) -> 0
A31: D | B31: REINCIDÊNCIAS | E31: =ROUND(SUM(E32:E33),4) -> 0 | F31: =ROUND(E31*SUMIF(PFP!$C$8:$C$24,"MO3",PFP!$L$8:$L$24),2) -> 0
A32: D1 | B32: Reincidência de "A" sobre "B" | E32: =ROUND(E8*E17,4) -> 0 | F32: =ROUND(E32*SUMIF([51]PFP!$C$8:$C$24,"MO3",[51]PFP!$L$8:$L$24),2) -> 0
A33: D2 | B33: Reincidência de "A" sobre Aviso Prévio Trabalhado e reincidência do FGTS sobre Aviso Prévio Indenizado | E33: =ROUND(E8*E27,4)+ROUND(E26*E11,4) -> 0 | F33: =ROUND(E33*SUMIF([51]PFP!$C$8:$C$24,"MO3",[51]PFP!$L$8:$L$24),2) -> 0
A34: K1c | B34: ENCARGOS SOCIAIS | E34: =ROUND(E8+E17+E25+E31,4) -> 0 | F34: =ROUND(E34*SUMIF(PFP!$C$8:$C$24,"MO3",PFP!$L$8:$L$24),2) -> 0
A35: Kc | B35: TAXA DE RESSARCIMENTO DE DESPESAS E ENCARGOS SOBRE MO3 | E35: =ROUND((1+E34+PFP3_FatorKd!E13)*(1+PFP3_FatorKd!E12)*(1+PFP3_FatorKd!E8),4) -> 1.2868
A36: OBSERVAÇÃO: SOCIETÁRIOS E EQUIVALENTES
A37: 1 - DISCRIMINAR OS ENCARGOS SOCIAIS COM SEUS RESPECTIVOS PERCENTUAS TOTALIZANDO OS MESMOS.
A38: 2 - APLICAR O % TOTAL P/ CALCULAR OS E. SOCIAIS INCIDENTES NA MÃO-DE-OBRA DE SOCIETÁRIOS
A39: Kc - Taxa de Ressarcimento de Despesas e Encargos sobre a Mão de Obra SOCIETÁRIA (incide apenas no Insumo Codigo MO3)
A40: Kc = (1 + K1 + K2) x (1 + K3) x (1 + K4)

Sheet PFP3_FatorKd
A1: DESPESAS FISCAIS E CUSTOS DIVERSOS: Kc | F1: CODIGO:
F2: PFP-3
A3: NOME DA CONSULTORA:
A5: PROJETO: | C5: CONTRATANTE: | F5: ='PFP2.3_FatorKc'!F5 -> BASE:
A6: =PFP!B6 -> Apoio à fiscalização e supervisão técnica dos serviços de revitalização na SEDE | C6: CODEVASF (SEDE) | F6: ='PFP2.3_FatorKc'!F6 -> SINAPI/DF Jun/2024
A7: Cod | B7: DESCRIÇÃO1 | D7: % preço2 | E7: % custo4 | F7: R$
A8: K4 | B8: TRIBUTOS | D8: =ROUND(D9+D10+D11,4) -> 0.104 | E8: =ROUND(E9+E10+E11,4) -> 0.1161 | F8: =E8*SUM(SUMIF(PFP!$C$8:$C$24,"MO1",PFP!$L$8:$L$24)*(1+'PFP2.1_FatorKa'!$E$35)+SUMIF(PFP!$C$8:$C$24,"MO2",PFP!$L$8:$L$24)*(1+'PFP2.2_FatorKb'!$E$34)+SUMIF(PFP!$C$8:$C$24,"<>MO*",PFP!$L$8:$L$24)+$F$13+$F$12) -> 662321.4418
A9: K4.1 | B9: ISS | D9: 0.03 | E9: =ROUND((1/(1-$D$8))*D9,4) -> 0.0335 | F9: =E9*SUM(SUMIF(PFP!$C$8:$C$24,"MO1",PFP!$L$8:$L$24)*(1+'PFP2.1_FatorKa'!$E$35)+SUMIF(PFP!$C$8:$C$24,"MO2",PFP!$L$8:$L$24)*(1+'PFP2.2_FatorKb'!$E$34)+SUMIF(PFP!$C$8:$C$24,"<>MO*",PFP!$L$8:$L$24)+$F$13+$F$12) -> 191109.1154
A10: K4.2 | B10: PIS3 - aliquota efetiva aplicavel percentual-desconto | D10: =ROUND(1.65%*0.8,4) -> 0.0132 | E10: =ROUND((1/(1-$D$8))*D10,4) -> 0.0147 | F10: =E10*SUM(SUMIF(PFP!$C$8:$C$24,"MO1",PFP!$L$8:$L$24)*(1+'PFP2.1_FatorKa'!$E$35)+SUMIF(PFP!$C$8:$C$24,"MO2",PFP!$L$8:$L$24)*(1+'PFP2.2_FatorKb'!$E$34)+SUMIF(PFP!$C$8:$C$24,"<>MO*",PFP!$L$8:$L$24)+$F$13+$F$12) -> 83859.8208
A11: K4.3 | B11: COFINS3 - aliquota efetiva aplicavel percentual-desconto | D11: =ROUND(7.6%*0.8,4) -> 0.0608 | E11: =ROUND((1/(1-$D$8))*D11,4) -> 0.0679 | F11: =E11*SUM(SUMIF(PFP!$C$8:$C$24,"MO1",PFP!$L$8:$L$24)*(1+'PFP2.1_FatorKa'!$E$35)+SUMIF(PFP!$C$8:$C$24,"MO2",PFP!$L$8:$L$24)*(1+'PFP2.2_FatorKb'!$E$34)+SUMIF(PFP!$C$8:$C$24,"<>MO*",PFP!$L$8:$L$24)+$F$13+$F$12) -> 387352.5056
A12: K3 | B12: REMUNERAÇÃO DA EMPRESA (LUCRO) | E12: 0.0775 | F12: =E12*SUM(SUMIF(PFP!$C$8:$C$24,"MO1",PFP!$L$8:$L$24)*(1+'PFP2.1_FatorKa'!$E$35)+SUMIF(PFP!$C$8:$C$24,"MO2",PFP!$L$8:$L$24)*(1+'PFP2.2_FatorKb'!$E$34)+SUMIF(PFP!$C$8:$C$24,"<>MO*",PFP!$L$8:$L$24)+$F$13) -> 410318.4249
A13: K2 | B13: CUSTOS DA ADMINISTRAÇÃO CENTRAL | E13: =ROUND(SUM(E14:E16),4) -> 0.07 | F13: =ROUND(E13*SUMIF(PFP!$C$8:$C$24,"MO*",PFP!$L$8:$L$24),2) -> 135235.33
A14: K2.1 | B14: Custos da administração central da empresa (diretoria, pessoal técnico de apoio e pessoal administrativo não diretamente vinculado à prestação dos serviços) | E14: 0.04 | F14: =ROUND(E14*SUMIF(PFP!$C$8:$C$24,"MO*",PFP!$L$8:$L$24),2) -> 77277.33
A15: K2.2 | B15: Outras despesas que afetam o custo de produção como treinamento, biblioteca, programa de qualidade, programa de benefícios, auditoria interna e externa | E15: 0.02 | F15: =ROUND(E15*SUMIF(PFP!$C$8:$C$24,"MO*",PFP!$L$8:$L$24),2) -> 38638.67
A16: K2.3 | B16: Despesas fixas e variaveis com patrimônio, aluguéis, comunicação, manutenção e transporte não diretamente relacionados com o custo direto dos serviços | E16: 0.01 | F16: =ROUND(E16*SUMIF(PFP!$C$8:$C$24,"MO*",PFP!$L$8:$L$24),2) -> 19319.33
A17: Kd | B17: TAXA RESSARCIMENTO DE DESPESAS SOBRE CUSTOS DIVERSOS | E17: =ROUND((1+E12)*(1+E8),4) -> 1.2026
A18: NOME DO INFORMANTE: | E18: QUALIFICAÇÃO:
A20: ASSINATURA: | E20: DATA:
A22: Observação:
A23: 1 - RELACIONAR OS CUSTOS DE ADMINISTRAÇÃO COM RESPECTIVOS PERCENTUAIS INCIDENTES NA MÃO -DE-OBRA
A24: 1 - DISCRIMINAR OS TRIBUTOS QUE INCIDEM SOBRE OS CUSTOS DA PRESTAÇÃO DOS SERVIÇOS
A25: 2 - K4 = INDICAR % DE CADA TRIBUTO E A SOMA DOS MESMOS (ex: ISS 5% + PIS 1,65% + COFINS 7,60% = 14,25%)
A26: 3 - PIS e COFINS, Regime de Incidencia Acumulativa (0,65% e 3,00% - sem percentual de desconto) ou em Regime de Incidencia Não Acumulativa (1,65% e 7,60% - aplicável percentual de desconto) de acordo com a forma de apuração do lucro no IRPJ. APRESENTAR COMPROVANTES de aproveitamento de créditos tributários dos últimos 12 meses em caso de aplicação de "percentual de desconto".
A27: 4 - AS DESPESAS FISCAIS (K4) INCIDEM SOBRE O TOTAL DA FATURA E NÃO SOBRE OS CUSTOS INCORRIDOS,
A28: DEVENDO SER CALCULADO O K4' APLICANDO-SE A SEGUINTE FÓRMULA:
A29: K4' = { [ 1 / ( 1 - K4) ] - 1 } x 100
A30: =CONCATENATE(" K4' = { [ 1 / ( 1 - ",D8," ) ] - 1 } x 100") -> K4' = { [ 1 / ( 1 - 0,104 ) ] - 1 } x 100
A31: Kc - Taxa de Ressarcimento de Despesas sobre Custos Diversos (incide sobre os Insumos Codigo DP e EM)
A32: Kc = (1 + K3) x (1 + K4)
A33: K2 - Incide sobre o Custo Total (CT) da Mão de Obra (MO* = MO1 + MO2)
A34: K3 - Incide sobre o Custo Total (CT) Mão de Obra com encargos (MO1 x Ka ou MO2 x Kb), demais Custos (DP e EM), e Custos da Administração Central (K2)
A35: K4 - Incide sobre o Custo Total (CT) Mão de Obra com encargos (MO1 x Ka ou MO2 x Kb), demais Custos (DP e EM), e Custos da Administração Central (K2) e Lucro (K3)

Sheet CRO1_Ins-Pro
A1: INSUMOS POR ETAPA/PRODUTO | K1: CÓDIGO:
K2: CRO-1
A3: Cod. | B3: Categoria / Insumo | C3: Uni | D3: Qde | E3: CUD | F3: PU | G3: FatorK | H3: Apoio à fiscalização
H4: Item 1 | I4: Item 2 | J4: Item 3 | K4: Item 4
A5: =PFP!D8 -> 0 | C5: mês | D5: =SUM(H5:K5) -> 0 | E5: =PFP!I8 -> 0 | F5: =PFP!J8 -> 0 | G5: =PFP!K8 -> 0
A6: =PFP!D9 -> 0 | C6: mês | D6: 0 | E6: =PFP!I9 -> 0 | F6: =PFP!J9 -> 0 | G6: =PFP!K9 -> 0
A7: =PFP!D10 -> P2 | B7: =PFP!F10 -> Engenheiro pleno (P8066) | C7: mês | D7: 24 | E7: =PFP!I10 -> 12629.6 | F7: =PFP!J10 -> 26889.68 | G7: =PFP!K10 -> 2.1291 | H7: ='CRO2_Ins-Mes'!E7 -> 6 | I7: ='CRO2_Ins-Mes'!E24 -> 6 | J7: ='CRO2_Ins-Mes'!E40 -> 6 | K7: ='CRO2_Ins-Mes'!E56 -> 6
A8: =PFP!D11 -> P3 | B8: =PFP!F11 -> Engenheiro júnior (P8065) | C8: mês | D8: =SUM(H8:K8) -> 96 | E8: =PFP!I11 -> 12002 | F8: =PFP!J11 -> 25553.46 | G8: =PFP!K11 -> 2.1291 | H8: ='CRO2_Ins-Mes'!E8 -> 24 | I8: ='CRO2_Ins-Mes'!E25 -> 24 | J8: ='CRO2_Ins-Mes'!E41 -> 24 | K8: ='CRO2_Ins-Mes'!E57 -> 24
A9: =PFP!D12 -> T1 | B9: =PFP!F12 -> Técnico ambiental/geoprocessamento (P8143) | C9: mês | D9: =SUM(H9:K9) -> 96 | E9: =PFP!I12 -> 2911.08 | F9: =PFP!J12 -> 6197.98 | G9: =PFP!K12 -> 2.1291 | H9: ='CRO2_Ins-Mes'!E9 -> 24 | I9: ='CRO2_Ins-Mes'!E26 -> 24 | J9: ='CRO2_Ins-Mes'!E42 -> 24 | K9: ='CRO2_Ins-Mes'!E58 -> 24
A10: =PFP!D13 -> T3 | B10: =PFP!F13 -> Auxiliar de topografia/Auxiliar (P8028) | C10: mês | D10: 96 | E10: =PFP!I13 -> 1583.76 | F10: =PFP!J13 -> 3371.98 | G10: =PFP!K13 -> 2.1291 | H10: ='CRO2_Ins-Mes'!E10 -> 24 | I10: ='CRO2_Ins-Mes'!E27 -> 24 | J10: ='CRO2_Ins-Mes'!E43 -> 24 | K10: ='CRO2_Ins-Mes'!E59 -> 24
A11: =PFP!D14 -> A3 | B11: =PFP!F14 -> Auxiliar administrativo (P8026) | C11: mês | D11: 24 | E11: =PFP!I14 -> 1880.26 | F11: =PFP!J14 -> 4003.26 | G11: =PFP!K14 -> 2.1291 | H11: ='CRO2_Ins-Mes'!E11 -> 6 | I11: ='CRO2_Ins-Mes'!E28 -> 6 | J11: ='CRO2_Ins-Mes'!E44 -> 6 | K11: ='CRO2_Ins-Mes'!E60 -> 6
A12: =PFP!D15 -> ECA | B12: =PFP!F15 -> Encargos Comp. e Adicionais | C12: mês | D12: =SUM(H12:K12) -> 336 | E12: =PFP!I15 -> 1123.574 | F12: =PFP!J15 -> 1351.21 | G12: =PFP!K15 -> 1.2026 | H12: =SUM(H5:H11) -> 84 | I12: =SUM(I5:I11) -> 84 | J12: =SUM(J5:J11) -> 84 | K12: 84
A13: =PFP!D16 -> AT2 | B13: =PFP!F16 -> Auxilio Transporte Técnicos | C13: mês | D13: =SUM(H13:H13) -> 0 | E13: =PFP!I16 -> Já incluso* | F13: =PFP!J16 -> 0 | G13: =PFP!K16 -> 1.2026
A14: =PFP!D17 -> AT3 | B14: =PFP!F17 -> Auxilio Transporte Secretária | C14: mês | D14: 0 | E14: =PFP!I17 -> Já Incluso* | F14: =PFP!J17 -> 0 | G14: =PFP!K17 -> 1.2026
A15: =PFP!D18 -> V1 | B15: =PFP!F18 -> Diárias | C15: dia | D15: =SUM(H15:K15) -> 3456 | E15: =PFP!I18 -> 219.8507778 | F15: =PFP!J18 -> 264.39 | G15: =PFP!K18 -> 1.2026 | H15: ='CRO2_Ins-Mes'!E12 -> 864 | I15: ='CRO2_Ins-Mes'!E29 -> 864 | J15: ='CRO2_Ins-Mes'!E45 -> 864 | K15: ='CRO2_Ins-Mes'!E61 -> 864
A16: =PFP!D19 -> V2 | B16: =PFP!F19 -> Pick-up Cab.dupla 2.8 4x4 Diesel | C16: dia | D16: =SUM(H16:K16) -> 1920 | E16: =PFP!I19 -> 325.6268258 | F16: =PFP!J19 -> 391.6 | G16: =PFP!K19 -> 1.2026 | H16: ='CRO2_Ins-Mes'!E13 -> 480 | I16: ='CRO2_Ins-Mes'!E30 -> 480 | J16: ='CRO2_Ins-Mes'!E46 -> 480 | K16: ='CRO2_Ins-Mes'!E62 -> 480
A17: =PFP!D20 -> V3 | B17: =PFP!F20 -> Passagens Aéreas (ida e volta) | C17: um | D17: =SUM(H17:K17) -> 36 | E17: =PFP!I20 -> 1277.416667 | F17: =PFP!J20 -> 1536.22 | G17: =PFP!K20 -> 1.2026 | H17: ='CRO2_Ins-Mes'!E14 -> 9 | I17: ='CRO2_Ins-Mes'!E31 -> 9 | J17: ='CRO2_Ins-Mes'!E47 -> 9 | K17: ='CRO2_Ins-Mes'!E63 -> 9
A18: =PFP!D21 -> V4 | B18: =PFP!F21 -> Equipamentos (Notebook, RTK, Drone, GPS) | C18: un | D18: =SUM(H18:K18) -> 96 | E18: =PFP!I21 -> 683.5515604 | F18: =PFP!J21 -> 822.04 | G18: =PFP!K21 -> 1.2026 | H18: ='CRO2_Ins-Mes'!E15 -> 24 | I18: ='CRO2_Ins-Mes'!E32 -> 24 | J18: ='CRO2_Ins-Mes'!E48 -> 24 | K18: ='CRO2_Ins-Mes'!E64 -> 24
A19: =PFP!D22 -> 0 | B19: =PFP!F22 -> 0 | C19: un | D19: =SUM(H19:K19) -> 0 | E19: =PFP!I22 -> 0 | F19: =PFP!J22 -> 0 | G19: =PFP!K22 -> 0 | H19: ='CRO2_Ins-Mes'!E16 -> 0 | I19: ='CRO2_Ins-Mes'!E33 -> 0 | J19: ='CRO2_Ins-Mes'!E49 -> 0 | K19: ='CRO2_Ins-Mes'!E65 -> 0
A20: =PFP!D23 -> 0 | B20: =PFP!F23 -> 0 | C20: un | D20: =SUM(H20:K20) -> 0 | E20: =PFP!I23 -> 0 | F20: =PFP!J23 -> 0 | G20: =PFP!K23 -> 0 | H20: ='CRO2_Ins-Mes'!E17 -> 0 | I20: ='CRO2_Ins-Mes'!E34 -> 0 | J20: ='CRO2_Ins-Mes'!E50 -> 0 | K20: ='CRO2_Ins-Mes'!E66 -> 0
A21: =PFP!D24 -> 0 | B21: =PFP!F24 -> 0 | C21: un | D21: 0 | E21: =PFP!I24 -> 0 | F21: =PFP!J24 -> 0 | G21: =PFP!K24 -> 0 | H21: ='CRO2_Ins-Mes'!E18 -> 0 | I21: ='CRO2_Ins-Mes'!E35 -> 0 | J21: ='CRO2_Ins-Mes'!E51 -> 0 | K21: ='CRO2_Ins-Mes'!E67 -> 0
A22: TOTAL | B22: VALOR TOTAL POR PRODUTO | C22: R$ | D22: =SUM(H22:K22) -> 6367109.04 | H22: =SUMPRODUCT(F5:F19,H5:H19) -> 1591777.26 | I22: =SUMPRODUCT(I5:I19,$F5:$F19) -> 1591777.26 | J22: 1591777.26 | K22: 1591777.26 | L22: =SUM(H22:K22) -> 6367109.04
C23: % | D23: =SUM(H23:K86) -> 1 | H23: =ROUND(H22/$D$22,5) -> 0.25 | I23: 0.25 | J23: 0.25 | K23: 0.25 | L23: =SUM(H23:K23) -> 1
A86: OBSERVAÇÃO:
A87: P - Profissionais nível superior nas áreas de Engenharia, Química, Arquitetura, Agronomia e Veterinária, conforme disposições da Lei 4.950-A/66
A88: T - Profissionais de nível médio técnico nas diversas áreas de atuação
A89: A - Profissionais de nível médio de apoio técnico-administrativo

Sheet CRO2_Ins-Mes
A1: CRONOGRAMA SIMPLIFICADO
F2: Relatórios Mensais de Andamento
A3: Cod1 | B3: Cod2 | C3: Produtos | D3: Uni | E3: Qde | F3: 1 | G3: 2 | H3: 3 | I3: 4 | J3: 5 | K3: 6 | L3: 7 | M3: 8 | N3: 9 | O3: 10 | P3: 11 | Q3: 12 | R3: 13 | S3: 14 | T3: 15 | U3: 16 | V3: 17 | W3: 18 | X3: 19 | Y3: 20 | Z3: 21 | AA3: 22 | AB3: 23 | AC3: 24
C4: Relatórios Parcial | D4: =PFP!G10 -> mês | E4: =SUM(F4:AC4) -> 96 | F4: 4 | G4: 4 | H4: 4 | I4: 4 | J4: 4 | K4: 4 | L4: 4 | M4: 4 | N4: 4 | O4: 4 | P4: 4 | Q4: 4 | R4: 4 | S4: 4 | T4: 4 | U4: 4 | V4: 4 | W4: 4 | X4: 4 | Y4: 4 | Z4: 4 | AA4: 4 | AB4: 4 | AC4: 4
C5: Relatórios Final | D5: =PFP!G11 -> mês | E5: =SUM(F5:AC5) -> 8 | Q5: 4 | AC5: 4
A6: Cod1 | B6: Cod2 | C6: Insumos | D6: Uni | E6: Qde | F6: 1 | G6: 2 | H6: 3 | I6: 4 | J6: 5 | K6: 6 | L6: 7 | M6: 8 | N6: 9 | O6: 10 | P6: 11 | Q6: 12 | R6: 13 | S6: 14 | T6: 15 | U6: 16 | V6: 17 | W6: 18 | X6: 19 | Y6: 20 | Z6: 21 | AA6: 22 | AB6: 23 | AC6: 24
A7: 1 | B7: =PFP!D10 -> P2 | C7: =PFP!F10 -> Engenheiro pleno (P8066) | D7: =PFP!G10 -> mês | E7: =SUM(F7:AC7) -> 6 | F7: 0.25 | G7: 0.25 | H7: 0.25 | I7: 0.25 | J7: 0.25 | K7: 0.25 | L7: 0.25 | M7: 0.25 | N7: 0.25 | O7: 0.25 | P7: 0.25 | Q7: 0.25 | R7: 0.25 | S7: 0.25 | T7: 0.25 | U7: 0.25 | V7: 0.25 | W7: 0.25 | X7: 0.25 | Y7: 0.25 | Z7: 0.25 | AA7: 0.25 | AB7: 0.25 | AC7: 0.25
A8: 1 | B8: =PFP!D11 -> P3 | C8: =PFP!F11 -> Engenheiro júnior (P8065) | D8: =PFP!G11 -> mês | E8: 24 | F8: 1 | G8: 1 | H8: 1 | I8: 1 | J8: 1 | K8: 1 | L8: 1 | M8: 1 | N8: 1 | O8: 1 | P8: 1 | Q8: 1 | R8: 1 | S8: 1 | T8: 1 | U8: 1 | V8: 1 | W8: 1 | X8: 1 | Y8: 1 | Z8: 1 | AA8: 1 | AB8: 1 | AC8: 1
A9: 1 | B9: =PFP!D12 -> T1 | C9: =PFP!F12 -> Técnico ambiental/geoprocessamento (P8143) | D9: =PFP!G12 -> mês | E9: 24 | F9: 1 | G9: 1 | H9: 1 | I9: 1 | J9: 1 | K9: 1 | L9: 1 | M9: 1 | N9: 1 | O9: 1 | P9: 1 | Q9: 1 | R9: 1 | S9: 1 | T9: 1 | U9: 1 | V9: 1 | W9: 1 | X9: 1 | Y9: 1 | Z9: 1 | AA9: 1 | AB9: 1 | AC9: 1
A10: 1 | B10: =PFP!D13 -> T3 | C10: =PFP!F13 -> Auxiliar de topografia/Auxiliar (P8028) | D10: =PFP!G13 -> mês | E10: 24 | F10: 1 | G10: 1 | H10: 1 | I10: 1 | J10: 1 | K10: 1 | L10: 1 | M10: 1 | N10: 1 | O10: 1 | P10: 1 | Q10: 1 | R10: 1 | S10: 1 | T10: 1 | U10: 1 | V10: 1 | W10: 1 | X10: 1 | Y10: 1 | Z10: 1 | AA10: 1 | AB10: 1 | AC10: 1
A11: 1 | B11: =PFP!D14 -> A3 | C11: =PFP!F14 -> Auxiliar administrativo (P8026) | D11: =PFP!G14 -> mês | E11: 6 | F11: 0.25 | G11: 0.25 | H11: 0.25 | I11: 0.25 | J11: 0.25 | K11: 0.25 | L11: 0.25 | M11: 0.25 | N11: 0.25 | O11: 0.25 | P11: 0.25 | Q11: 0.25 | R11: 0.25 | S11: 0.25 | T11: 0.25 | U11: 0.25 | V11: 0.25 | W11: 0.25 | X11: 0.25 | Y11: 0.25 | Z11: 0.25 | AA11: 0.25 | AB11: 0.25 | AC11: 0.25
A12: 1 | B12: =PFP!D18 -> V1 | C12: =PFP!F18 -> Diárias | D12: =PFP!G18 -> dia | E12: 864 | F12: =SUM(F8:F10)*3*4 -> 36 | G12: =SUM(G8:G10)*3*4 -> 36 | H12: 36 | I12: 36 | J12: 36 | K12: 36 | L12: 36 | M12: 36 | N12: 36 | O12: 36 | P12: 36 | Q12: 36 | R12: 36 | S12: 36 | T12: 36 | U12: 36 | V12: 36 | W12: 36 | X12: 36 | Y12: 36 | Z12: 36 | AA12: 36 | AB12: 36 | AC12: 36
A13: 1 | B13: =PFP!D19 -> V2 | C13: =PFP!F19 -> Pick-up Cab.dupla 2.8 4x4 Diesel | D13: =PFP!G19 -> dia | E13: 480 | F13: =5*4 -> 20 | G13: =5*4 -> 20 | H13: 20 | I13: 20 | J13: 20 | K13: 20 | L13: 20 | M13: 20 | N13: 20 | O13: 20 | P13: 20 | Q13: 20 | R13: 20 | S13: 20 | T13: 20 | U13: 20 | V13: 20 | W13: 20 | X13: 20 | Y13: 20 | Z13: 20 | AA13: 20 | AB13: 20 | AC13: 20
A14: 1 | B14: =PFP!D20 -> V3 | C14: =PFP!F20 -> Passagens Aéreas (ida e volta) | D14: =PFP!G20 -> un | E14: 9 | F14: =(SUM(F8:F10)) -> 3 | Q14: =(SUM(Q8:Q10)) -> 3 | AC14: =(SUM(AC8:AC10)) -> 3
A15: 1 | B15: =PFP!D21 -> V4 | C15: =PFP!F21 -> Equipamentos (Notebook, RTK, Drone, GPS) | D15: =PFP!G21 -> mês | E15: 24 | F15: 1 | G15: 1 | H15: 1 | I15: 1 | J15: 1 | K15: 1 | L15: 1 | M15: 1 | N15: 1 | O15: 1 | P15: 1 | Q15: 1 | R15: 1 | S15: 1 | T15: 1 | U15: 1 | V15: 1 | W15: 1 | X15: 1 | Y15: 1 | Z15: 1 | AA15: 1 | AB15: 1 | AC15: 1
A16: 1 | D16: =PFP!G22 -> 0 | E16: =SUM(F16:AC16) -> 0
A17: 1 | B17: =PFP!D23 -> 0 | D17: =PFP!G23 -> 0
A18: 1 | B18: =PFP!D24 -> 0 | C18: =PFP!F24 -> 0 | D18: =PFP!G24 -> 0 | E18: 0
A19: 1 | C19: Item 1 - DF, GO, TO, MT | E19: =SUM(F19:AC19) -> 0
A21: Cod1 | B21: Cod2 | C21: Insumos | D21: Uni | E21: Qde | F21: 1 | G21: 2 | H21: 3 | I21: 4 | J21: 5 | K21: 6 | L21: 7 | M21: 8 | N21: 9 | O21: 10 | P21: 11 | Q21: 12 | R21: 13 | S21: 14 | T21: 15 | U21: 16 | V21: 17 | W21: 18 | X21: 19 | Y21: 20 | Z21: 21 | AA21: 22 | AB21: 23 | AC21: 24
A24: 2 | B24: P2 | C24: =C7 -> Engenheiro pleno (P8066) | D24: mês | E24: =SUM(F24:AC24) -> 6 | F24: 0.25 | G24: 0.25 | H24: 0.25 | I24: 0.25 | J24: 0.25 | K24: 0.25 | L24: 0.25 | M24: 0.25 | N24: 0.25 | O24: 0.25 | P24: 0.25 | Q24: 0.25 | R24: 0.25 | S24: 0.25 | T24: 0.25 | U24: 0.25 | V24: 0.25 | W24: 0.25 | X24: 0.25 | Y24: 0.25 | Z24: 0.25 | AA24: 0.25 | AB24: 0.25 | AC24: 0.25
A25: 2 | B25: P3 | C25: Engenheiro júnior (P8065) | D25: mês | E25: 24 | F25: 1 | G25: 1 | H25: 1 | I25: 1 | J25: 1 | K25: 1 | L25: 1 | M25: 1 | N25: 1 | O25: 1 | P25: 1 | Q25: 1 | R25: 1 | S25: 1 | T25: 1 | U25: 1 | V25: 1 | W25: 1 | X25: 1 | Y25: 1 | Z25: 1 | AA25: 1 | AB25: 1 | AC25: 1
A26: 2 | B26: T1 | C26: Técnico ambiental/geoprocessamento (P8143) | D26: mês | E26: 24 | F26: 1 | G26: 1 | H26: 1 | I26: 1 | J26: 1 | K26: 1 | L26: 1 | M26: 1 | N26: 1 | O26: 1 | P26: 1 | Q26: 1 | R26: 1 | S26: 1 | T26: 1 | U26: 1 | V26: 1 | W26: 1 | X26: 1 | Y26: 1 | Z26: 1 | AA26: 1 | AB26: 1 | AC26: 1
A27: 2 | B27: D | C27: Auxiliar de topografia/Auxiliar (P8028) | D27: mês | E27: 24 | F27: 1 | G27: 1 | H27: 1 | I27: 1 | J27: 1 | K27: 1 | L27: 1 | M27: 1 | N27: 1 | O27: 1 | P27: 1 | Q27: 1 | R27: 1 | S27: 1 | T27: 1 | U27: 1 | V27: 1 | W27: 1 | X27: 1 | Y27: 1 | Z27: 1 | AA27: 1 | AB27: 1 | AC27: 1
A28: 2 | B28: A1 | C28: Auxiliar administrativo (P8026) | D28: mês | E28: 6 | F28: 0.25 | G28: 0.25 | H28: 0.25 | I28: 0.25 | J28: 0.25 | K28: 0.25 | L28: 0.25 | M28: 0.25 | N28: 0.25 | O28: 0.25 | P28: 0.25 | Q28: 0.25 | R28: 0.25 | S28: 0.25 | T28: 0.25 | U28: 0.25 | V28: 0.25 | W28: 0.25 | X28: 0.25 | Y28: 0.25 | Z28: 0.25 | AA28: 0.25 | AB28: 0.25 | AC28: 0.25
A29: 2 | B29: V1 | C29: Diárias | D29: dia | E29: 864 | F29: 36 | G29: 36 | H29: 36 | I29: 36 | J29: 36 | K29: 36 | L29: 36 | M29: 36 | N29: 36 | O29: 36 | P29: 36 | Q29: 36 | R29: 36 | S29: 36 | T29: 36 | U29: 36 | V29: 36 | W29: 36 | X29: 36 | Y29: 36 | Z29: 36 | AA29: 36 | AB29: 36 | AC29: 36
A30: 2 | B30: V2 | C30: Pick-up Cab.dupla 2.8 4x4 Diesel | D30: dia | E30: 480 | F30: 20 | G30: 20 | H30: 20 | I30: 20 | J30: 20 | K30: 20 | L30: 20 | M30: 20 | N30: 20 | O30: 20 | P30: 20 | Q30: 20 | R30: 20 | S30: 20 | T30: 20 | U30: 20 | V30: 20 | W30: 20 | X30: 20 | Y30: 20 | Z30: 20 | AA30: 20 | AB30: 20 | AC30: 20
A31: 2 | B31: V3 | C31: Passagens Aéreas (ida e volta) | D31: un | E31: 9 | F31: 3 | K31: 0 | Q31: 3 | AC31: 3
A32: 2 | B32: M1 | C32: Equipamentos (Notebook, RTK, Drone, GPS) | D32: un | E32: 24 | F32: 1 | G32: 1 | H32: 1 | I32: 1 | J32: 1 | K32: 1 | L32: 1 | M32: 1 | N32: 1 | O32: 1 | P32: 1 | Q32: 1 | R32: 1 | S32: 1 | T32: 1 | U32: 1 | V32: 1 | W32: 1 | X32: 1 | Y32: 1 | Z32: 1 | AA32: 1 | AB32: 1 | AC32: 1
A33: 2 | C33: 0 | E33: =SUM(F33:AC33) -> 0 | F33: =F16 -> 0
A34: 2 | E34: 0 | F34: =F17 -> 0 | G34: =G17 -> 0 | H34: 0 | I34: 0 | J34: 0 | K34: 0 | L34: 0 | M34: 0 | N34: 0 | O34: 0 | P34: 0 | Q34: 0 | R34: 0 | S34: 0 | T34: 0 | U34: 0 | V34: 0 | W34: 0 | X34: 0 | Y34: 0 | Z34: 0 | AA34: 0 | AB34: 0 | AC34: 0
A35: 2 | C35: =C18 -> 0 | E35: 0 | F35: =F18 -> 0
A36: 2 | C36: Item 2-MG, BA | D36: =PFP!G39 -> 0
A37: Cod1 | B37: Cod2 | C37: Insumos | D37: Uni | E37: Qde | F37: 1 | G37: 2 | H37: 3 | I37: 4 | J37: 5 | K37: 6 | L37: 7 | M37: 8 | N37: 9 | O37: 10 | P37: 11 | Q37: 12 | R37: 13 | S37: 14 | T37: 15 | U37: 16 | V37: 17 | W37: 18 | X37: 19 | Y37: 20 | Z37: 21 | AA37: 22 | AB37: 23 | AC37: 24
A40: 3 | B40: P2 | C40: =C7 -> Engenheiro pleno (P8066) | D40: mês | E40: =SUM(F40:AC40) -> 6 | F40: 0.25 | G40: 0.25 | H40: 0.25 | I40: 0.25 | J40: 0.25 | K40: 0.25 | L40: 0.25 | M40: 0.25 | N40: 0.25 | O40: 0.25 | P40: 0.25 | Q40: 0.25 | R40: 0.25 | S40: 0.25 | T40: 0.25 | U40: 0.25 | V40: 0.25 | W40: 0.25 | X40: 0.25 | Y40: 0.25 | Z40: 0.25 | AA40: 0.25 | AB40: 0.25 | AC40: 0.25
A41: 3 | B41: P3 | C41: Engenheiro júnior (P8065) | D41: mês | E41: 24 | F41: 1 | G41: 1 | H41: 1 | I41: 1 | J41: 1 | K41: 1 | L41: 1 | M41: 1 | N41: 1 | O41: 1 | P41: 1 | Q41: 1 | R41: 1 | S41: 1 | T41: 1 | U41: 1 | V41: 1 | W41: 1 | X41: 1 | Y41: 1 | Z41: 1 | AA41: 1 | AB41: 1 | AC41: 1
A42: 3 | B42: T1 | C42: Técnico ambiental/geoprocessamento (P8143) | D42: mês | E42: 24 | F42: 1 | G42: 1 | H42: 1 | I42: 1 | J42: 1 | K42: 1 | L42: 1 | M42: 1 | N42: 1 | O42: 1 | P42: 1 | Q42: 1 | R42: 1 | S42: 1 | T42: 1 | U42: 1 | V42: 1 | W42: 1 | X42: 1 | Y42: 1 | Z42: 1 | AA42: 1 | AB42: 1 | AC42: 1
A43: 3 | B43: D | C43: Auxiliar de topografia/Auxiliar (P8028) | D43: mês | E43: 24 | F43: 1 | G43: 1 | H43: 1 | I43: 1 | J43: 1 | K43: 1 | L43: 1 | M43: 1 | N43: 1 | O43: 1 | P43: 1 | Q43: 1 | R43: 1 | S43: 1 | T43: 1 | U43: 1 | V43: 1 | W43: 1 | X43: 1 | Y43: 1 | Z43: 1 | AA43: 1 | AB43: 1 | AC43: 1
A44: 3 | B44: A1 | C44: Auxiliar administrativo (P8026) | D44: mês | E44: 6 | F44: 0.25 | G44: 0.25 | H44: 0.25 | I44: 0.25 | J44: 0.25 | K44: 0.25 | L44: 0.25 | M44: 0.25 | N44: 0.25 | O44: 0.25 | P44: 0.25 | Q44: 0.25 | R44: 0.25 | S44: 0.25 | T44: 0.25 | U44: 0.25 | V44: 0.25 | W44: 0.25 | X44: 0.25 | Y44: 0.25 | Z44: 0.25 | AA44: 0.25 | AB44: 0.25 | AC44: 0.25
A45: 3 | B45: V1 | C45: Diárias | D45: dia | E45: 864 | F45: 36 | G45: 36 | H45: 36 | I45: 36 | J45: 36 | K45: 36 | L45: 36 | M45: 36 | N45: 36 | O45: 36 | P45: 36 | Q45: 36 | R45: 36 | S45: 36 | T45: 36 | U45: 36 | V45: 36 | W45: 36 | X45: 36 | Y45: 36 | Z45: 36 | AA45: 36 | AB45: 36 | AC45: 36
A46: 3 | B46: V2 | C46: Pick-up Cab.dupla 2.8 4x4 Diesel | D46: dia | E46: 480 | F46: 20 | G46: 20 | H46: 20 | I46: 20 | J46: 20 | K46: 20 | L46: 20 | M46: 20 | N46: 20 | O46: 20 | P46: 20 | Q46: 20 | R46: 20 | S46: 20 | T46: 20 | U46: 20 | V46: 20 | W46: 20 | X46: 20 | Y46: 20 | Z46: 20 | AA46: 20 | AB46: 20 | AC46: 20
A47: 3 | B47: V3 | C47: Passagens Aéreas (ida e volta) | D47: un | E47: 9 | F47: 3 | K47: 0 | Q47: 3 | AC47: 3
A48: 3 | B48: V4 | C48: Equipamentos (Notebook, RTK, Drone, GPS) | D48: mês | E48: 24 | F48: 1 | G48: 1 | H48: 1 | I48: 1 | J48: 1 | K48: 1 | L48: 1 | M48: 1 | N48: 1 | O48: 1 | P48: 1 | Q48: 1 | R48: 1 | S48: 1 | T48: 1 | U48: 1 | V48: 1 | W48: 1 | X48: 1 | Y48: 1 | Z48: 1 | AA48: 1 | AB48: 1 | AC48: 1
A49: 3 | C49: 0 | E49: =SUM(F49:AC49) -> 0 | G49: =G16 -> 0
A50: 3
A51: 3 | C51: =C18 -> 0
A52: 3 | C52: Item 3 - SE, AL, PE, PB, RN, CE
A53: Cod1 | B53: Cod2 | C53: Insumos | D53: Uni | E53: Qde | F53: 1 | G53: 2 | H53: 3 | I53: 4 | J53: 5 | K53: 6 | L53: 7 | M53: 8 | N53: 9 | O53: 10 | P53: 11 | Q53: 12 | R53: 13 | S53: 14 | T53: 15 | U53: 16 | V53: 17 | W53: 18 | X53: 19 | Y53: 20 | Z53: 21 | AA53: 22 | AB53: 23 | AC53: 24
A56: 4 | B56: P2 | C56: =C7 -> Engenheiro pleno (P8066) | D56: mês | E56: =SUM(F56:AC56) -> 6 | F56: 0.25 | G56: 0.25 | H56: 0.25 | I56: 0.25 | J56: 0.25 | K56: 0.25 | L56: 0.25 | M56: 0.25 | N56: 0.25 | O56: 0.25 | P56: 0.25 | Q56: 0.25 | R56: 0.25 | S56: 0.25 | T56: 0.25 | U56: 0.25 | V56: 0.25 | W56: 0.25 | X56: 0.25 | Y56: 0.25 | Z56: 0.25 | AA56: 0.25 | AB56: 0.25 | AC56: 0.25
A57: 4 | B57: P3 | C57: Engenheiro júnior (P8065) | D57: mês | E57: 24 | F57: 1 | G57: 1 | H57: 1 | I57: 1 | J57: 1 | K57: 1 | L57: 1 | M57: 1 | N57: 1 | O57: 1 | P57: 1 | Q57: 1 | R57: 1 | S57: 1 | T57: 1 | U57: 1 | V57: 1 | W57: 1 | X57: 1 | Y57: 1 | Z57: 1 | AA57: 1 | AB57: 1 | AC57: 1
A58: 4 | B58: T1 | C58: Técnico ambiental/geoprocessamento (P8143) | D58: mês | E58: 24 | F58: 1 | G58: 1 | H58: 1 | I58: 1 | J58: 1 | K58: 1 | L58: 1 | M58: 1 | N58: 1 | O58: 1 | P58: 1 | Q58: 1 | R58: 1 | S58: 1 | T58: 1 | U58: 1 | V58: 1 | W58: 1 | X58: 1 | Y58: 1 | Z58: 1 | AA58: 1 | AB58: 1 | AC58: 1
A59: 4 | B59: D | C59: Auxiliar de topografia/Auxiliar (P8028) | D59: mês | E59: 24 | F59: 1 | G59: 1 | H59: 1 | I59: 1 | J59: 1 | K59: 1 | L59: 1 | M59: 1 | N59: 1 | O59: 1 | P59: 1 | Q59: 1 | R59: 1 | S59: 1 | T59: 1 | U59: 1 | V59: 1 | W59: 1 | X59: 1 | Y59: 1 | Z59: 1 | AA59: 1 | AB59: 1 | AC59: 1
A60: 4 | B60: A1 | C60: Auxiliar administrativo (P8026) | D60: mês | E60: 6 | F60: 0.25 | G60: 0.25 | H60: 0.25 | I60: 0.25 | J60: 0.25 | K60: 0.25 | L60: 0.25 | M60: 0.25 | N60: 0.25 | O60: 0.25 | P60: 0.25 | Q60: 0.25 | R60: 0.25 | S60: 0.25 | T60: 0.25 | U60: 0.25 | V60: 0.25 | W60: 0.25 | X60: 0.25 | Y60: 0.25 | Z60: 0.25 | AA60: 0.25 | AB60: 0.25 | AC60: 0.25
A61: 4 | B61: V1 | C61: Diárias | D61: dia | E61: 864 | F61: 36 | G61: 36 | H61: 36 | I61: 36 | J61: 36 | K61: 36 | L61: 36 | M61: 36 | N61: 36 | O61: 36 | P61: 36 | Q61: 36 | R61: 36 | S61: 36 | T61: 36 | U61: 36 | V61: 36 | W61: 36 | X61: 36 | Y61: 36 | Z61: 36 | AA61: 36 | AB61: 36 | AC61: 36
A62: 4 | B62: V2 | C62: Pick-up Cab.dupla 2.8 4x4 Diesel | D62: dia | E62: 480 | F62: 20 | G62: 20 | H62: 20 | I62: 20 | J62: 20 | K62: 20 | L62: 20 | M62: 20 | N62: 20 | O62: 20 | P62: 20 | Q62: 20 | R62: 20 | S62: 20 | T62: 20 | U62: 20 | V62: 20 | W62: 20 | X62: 20 | Y62: 20 | Z62: 20 | AA62: 20 | AB62: 20 | AC62: 20
A63: 4 | B63: V3 | C63: Passagens Aéreas (ida e volta) | D63: un | E63: 9 | F63: 3 | K63: 0 | Q63: 3 | AC63: 3
A64: 4 | B64: V4 | C64: Equipamentos (Notebook, RTK, Drone, GPS) | D64: mês | E64: =SUM(F64:AC64) -> 24 | F64: 1 | G64: 1 | H64: 1 | I64: 1 | J64: 1 | K64: 1 | L64: 1 | M64: 1 | N64: 1 | O64: 1 | P64: 1 | Q64: 1 | R64: 1 | S64: 1 | T64: 1 | U64: 1 | V64: 1 | W64: 1 | X64: 1 | Y64: 1 | Z64: 1 | AA64: 1 | AB64: 1 | AC64: 1
A65: 4 | C65: 0
A66: 4
A67: 4 | C67: =C18 -> 0
A68: 4 | C68: Item 4 - MA, AP, PA

Sheet Cronograma
A1: Cronograma Físico Financeiro
A3: NOME DA CONSULTORA:
A5: PROJETO: | L5: OBJETO: | Y5: EDITAL:
A6: Revitalização | L6: =PFP!B6 -> Apoio à fiscalização e supervisão técnica dos serviços de revitalização na SEDE
B7: Total | C7: Relatórios Mensais de Andamento
C8: 1 | D8: 2 | E8: 3 | F8: 4 | G8: 5 | H8: 6 | I8: 7 | J8: 8 | K8: 9 | L8: 10 | M8: 11 | N8: 12 | O8: 13 | P8: 14 | Q8: 15 | R8: 16 | S8: 17 | T8: 18 | U8: 19 | V8: 20 | W8: 21 | X8: 22 | Y8: 23 | Z8: 24
A9: Físico | B9: 100 | C9: =$B$9/24 -> 4.166666667 | D9: =$B$9/24 -> 4.166666667 | E9: 4.166666667 | F9: 4.166666667 | G9: 4.166666667 | H9: 4.166666667 | I9: 4.166666667 | J9: 4.166666667 | K9: 4.166666667 | L9: 4.166666667 | M9: 4.166666667 | N9: 4.166666667 | O9: 4.166666667 | P9: 4.166666667 | Q9: 4.166666667 | R9: 4.166666667 | S9: 4.166666667 | T9: 4.166666667 | U9: 4.166666667 | V9: 4.166666667 | W9: 4.166666667 | X9: 4.166666667 | Y9: 4.166666667 | Z9: 4.166666667
A10: Financeiro (R$) | B10: =SUM(C10:Z10) -> 6367109.04 | C10: ='Planilha Resumo '!$F$13/24 -> 265296.21 | D10: ='Planilha Resumo '!$F$13/24 -> 265296.21 | E10: ='Planilha Resumo '!$F$13/24 -> 265296.21 | F10: ='Planilha Resumo '!$F$13/24 -> 265296.21 | G10: ='Planilha Resumo '!$F$13/24 -> 265296.21 | H10: ='Planilha Resumo '!$F$13/24 -> 265296.21 | I10: ='Planilha Resumo '!$F$13/24 -> 265296.21 | J10: ='Planilha Resumo '!$F$13/24 -> 265296.21 | K10: ='Planilha Resumo '!$F$13/24 -> 265296.21 | L10: ='Planilha Resumo '!$F$13/24 -> 265296.21 | M10: ='Planilha Resumo '!$F$13/24 -> 265296.21 | N10: ='Planilha Resumo '!$F$13/24 -> 265296.21 | O10: ='Planilha Resumo '!$F$13/24 -> 265296.21 | P10: ='Planilha Resumo '!$F$13/24 -> 265296.21 | Q10: ='Planilha Resumo '!$F$13/24 -> 265296.21 | R10: ='Planilha Resumo '!$F$13/24 -> 265296.21 | S10: ='Planilha Resumo '!$F$13/24 -> 265296.21 | T10: ='Planilha Resumo '!$F$13/24 -> 265296.21 | U10: ='Planilha Resumo '!$F$13/24 -> 265296.21 | V10: ='Planilha Resumo '!$F$13/24 -> 265296.21 | W10: ='Planilha Resumo '!$F$13/24 -> 265296.21 | X10: ='Planilha Resumo '!$F$13/24 -> 265296.21 | Y10: ='Planilha Resumo '!$F$13/24 -> 265296.21 | Z10: ='Planilha Resumo '!$F$13/24 -> 265296.21
A11: NOME DO INFORMANTE: | V11: QUALIFICAÇÃO:
A13: ASSINATURA: | W13: DATA:
A15: OBSERVAÇÃO:
M39: =100/24 -> 4.166666667
M40: =4.17*24 -> 100.08

Sheet CPU HOSPEDAGEM
E1: BASE:
B2: Engenharia Consultiva da Codevasf
B3: CPU - HOSPEDAGEM EQUIPE DE CAMPO (3 PESSOAS/MÊS) | D3: Código/Referencia
B4: ALUGUEL | C4: 3074.56 | D4: F020003334/EMBASA | E4: Jul/EMBASA
B5: Aquisição de Mobiliário | C5: =43.89*C16 -> 131.67 | D5: B8954/DNIT
B6: Material de limpeza e diarista | C6: =126.93+(123*8) -> 1110.93 | D6: 10563/ORSE - E200300131/EMBASA | E6: Jul/EMBASA
B7: manutenção da casa alugada - Serviços Gerais/Vigia | C7: 2706.8 | D7: 41096/SINAPI | E7: Ago/SINAPI
B8: Energia | C8: 180 | D8: 10555/ORSE
B9: Água | C9: 394.99 | D9: 10554/ORSE
B10: telefone/Internet | C10: =154.99+89 -> 243.99 | D10: 10557/10558/ORSE
B11: IPTU (mês) | C11: =(C4*0.5)/12 -> 128.1066667
B12: Despesas Gerais - 10% | C12: =SUM(C4:C11)*0.1 -> 797.1046667
B13: Custo Mensal: | C13: =SUM(C4:C12) -> 8768.151333
B14: Custo Mensal por pessoa: | C14: =C13/C16 -> 2922.717111
B15: Custo diário por pessoa: | C15: =C14/22 -> 132.8507778
B16: número de pessoas: | C16: 3
B17: Alimentação: | C17: 87 | D17: Tabela Diária Codevasf
B19: Diária Total (alimentação + hospedagem): | C19: =C15+C17 -> 219.8507778

Sheet CPU-VEICULO_PickUp
A5: Composição de Preços de Locação de Veículo tipo pick-up
B6: Data de atualização: | C6: 2024-01-22 | E6: CV | F6: Média | G6: Mediana | K6: CV | L6: Média | M6: Mediana | V6: CV | W6: Média | X6: Mediana
A7: CODEVASF | E7: =_xlfn.STDEV.S(E10:H10)/AVERAGE(E10:H10) -> 0.09266792266 | F7: =AVERAGE(E10:H10) -> 179935.5 | G7: =MEDIAN(E10:H10) -> 184702 | K7: =_xlfn.STDEV.S(L9:S9)/AVERAGE(L9:S9) -> 0.2095249415 | L7: =AVERAGE(L9:S9) -> 31.09571429 | M7: =MEDIAN(L9:S9) -> 30.16 | V7: =_xlfn.STDEV.S(W9:AD9)/AVERAGE(W9:AD9) -> 0.1324098854 | W7: =AVERAGE(W9:AD9) -> 430.6009375 | X7: =MEDIAN(W9:AD9) -> 437.31625
A8: OBS: Preço sem BDI e sem motorista BDI= | E8: Preço FIPE | J8: PRODUTO | K8: MENOR (MÉDIA, MEDIANA) | L8: COT. 1 | M8: COT. 2 | N8: COT. 3 | O8: COT. 4 | P8: COT. 5 | Q8: COT. 6 | R8: COT. 7 | S8: COT. 8 | U8: PRODUTO | V8: MENOR (MÉDIA, MEDIANA) | W8: COT. 1 | X8: COT. 2 | Y8: COT. 3 | Z8: COT. 4 | AA8: COT. 5 | AB8: COT. 6 | AC8: COT. 7 | AD8: COT. 8
A9: Veículo tipo pick-up, cabine dupla - 2.0 16V 4x4 diesel Aut. | E9: Toro Ultra 2.0 16V 4x4 TB Diesel Aut. | F9: Toro Freedom 2.0 16V 4x4 TB Diesel Aut. | G9: Toro Volcano 2.0 16V 4x4 TB Diesel Aut. | H9: Toro Ranch 2.0 16V 4x4 TB Diesel Aut. | J9: LUBRIFICANTE 5W30 | K9: =SMALL(L7:M7,1) -> 30.16 | L9: 32.27 | M9: 28.9 | N9: 30.16 | O9: 37.7 | P9: 39.99 | Q9: 20.25 | R9: 28.4 | U9: Pneu 225/65 R17 | V9: =SMALL(W7:X7,1) -> 430.6009375 | W9: =1661.85/4 -> 415.4625 | X9: =1940.9/4 -> 485.225 | Y9: 399.88 | Z9: 330.46 | AA9: 479.6 | AB9: 386.23 | AC9: 459.17 | AD9: 488.78
B10: Custo Mensal (R$): | C10: =C51 -> 7163.790168 | E10: 193030 | F10: 157308 | G10: 177450 | H10: 191954
B11: Custo Diária (R$): | C11: =C10/22 -> 325.6268258
B12: Custo Horário (R$): | C12: =C10/176 -> 40.70335323
A13: A | B13: Depreciação mensal do equipamento
A14: A1 | B14: Preço de Aquisição | C14: =SMALL(F7:G7,1) -> 179935.5
A15: A2 | B15: Tempo previsto de vida útil (meses) | C15: 36
A16: A3 | B16: Previsão de recup. Na venda do bem usado | C16: 0.4
A17: A4 | B17: Custo mensal [A1-(A3xA1)]/A2 | C17: =(C14-(C16*C14))/C15 -> 2998.925
A18: B | B18: Juros pelo Capital empregado
A19: B1 | B19: Taxa mensal de Juros * | C19: =POWER(1+C56,1/12)-1 -> 0.009300823619
A20: B2 | B20: Juros s/depreciação/aluguel (B1xA4) | C20: =C19*C17 -> 27.89247247
A21: C | B21: Conservação e manutenção ** | C21: 0.75
A22: C1 | B22: Taxa de gastos s/a deprec. Inc. seguros (%) | C22: =C21 -> 0.75 | AF22: PREÇO DO DIESEL | AG22: 5.98
A23: C2 | B23: Incidência mensal (C1xA4) | C23: =C22*C17 -> 2249.19375 | AF23: https://precos.petrobras.com.br/sele%C3%A7%C3%A3o-de-estados-diesel
A24: D | B24: Combustível
A25: D1 | B25: Média mensal de quilômetro por veículo | C25: =130*22 -> 2860
A26: D2 | B26: Preço do litro de combustível | C26: =AG22 -> 5.98
A27: D3 | B27: Quilômetros rodados com um litro combustivel | C27: 10
A28: D4 | B28: Combustivel (D1/D3)*D2 | C28: =(C25/C27)*C26 -> 1710.28
A29: E | B29: Lubrificantes
A30: E1 | B30: Quilometragem do Contrato (D1*12) | C30: =C25*36 -> 102960
A31: E2 | B31: Franquia por troca de óleo (km) | C31: 10000
A32: E3 | B32: Preço do litro de óleo | C32: =K9 -> 30.16
A33: E4 | B33: Quantidade de litros de óleo por troca | C33: 5
A34: E5 | B34: Quantidade de dias do Contrato | C34: =365*3 -> 1095
A35: E6 | B35: Lubrificantes E = (E1*E3*E4*30)/E2*E5 | C35: =(C30*C32*C33*30)/(C31*C34) -> 42.53799452
A36: F | B36: Pneus
A37: F1 | B37: Quilometragem do Contrato | C37: =C30 -> 102960
A38: F2 | B38: Vida do Pneu em quilômetros | C38: 45000
A39: F3 | B39: Quantidade de pneus | C39: 5
A40: F4 | B40: Preço do Pneu | C40: =V9 -> 430.6009375
A41: F5 | B41: Quantidade de dias do contrato | C41: =C34 -> 1095
A42: F6 | B42: Pneus = (F1*F3*F4*30)/(F2*F5) | C42: =(C37*C39*C40*30)/(C38*C41) -> 134.9609514
A43: G | B43: Motorista
A44: G1 | B44: Salário com encargos sociais | C44: 0 | J44: https://www.google.com/search?q=lubrificante+5w30&sxsrf=AJOqlzUM514L6uswJHb1jIGpGgXchTtV5A:1677092590843&source=lnms&tbm=shop&sa=X&sqi=2&ved=
A45: H | B45: Custo Mensal
B46: Sem Motorista (A4+B2+C2+D4+E6+F6) | C46: =C17+C20+C23+C28+C35+C42 -> 7163.790168
B47: Com Motorista (A4+B2+C2+D4+E6+F6+G1) | C47: =C17+C20+C23+C28+C35+C42+C44 -> 7163.790168
A48: I | B48: Custo Direto p/ km Rodado
B49: Sem Motorista | C49: =C46/C25 -> 2.504821737
B50: Com Motorista | C50: =C47/C25 -> 2.504821737
A51: J | B51: Preço cobrado sem BDI | C51: =C46*(1+C8) -> 7163.790168
A52: J1 | B52: Sem Motorista | C52: =C51 -> 7163.790168
A53: J2 | B53: Com Motorista | C53: =C47 -> 7163.790168 | T53: https://www.google.com/search?q=pneu+225%2F65+R17&sa=X&biw=1600&bih=757&tbm=shop&sxsrf=AJOqlzWsb-d4PS1_OUOEhKmRc2RbtSg3RQ%3A1677092596279&ei=9Gb2Y9K5ENTa5OUPvLykGA&ved=0ahUKEwjSg9Pj6Kn9AhVULbkGHTweCQMQ4dUDCAg&uact=5&oq=pneu+225%2F65+R17&gs_lcp=Cgtwcm9kdWN0cy1jYxADMgsIABCABBCxAxCDATIFCAAQgAQyBwgAEIAEEAoyBwgAEIAEEAoyBwgAEIAEEAoyBwgAEIAEEAoyBwgAEIAEEAoyBQgAEIAEMgcIABCABBAKMgcIABCABBAKOgQIIxAnOgQIABBDSgQIQRgAUABYoTJgqUBoAHAAeACAAdIFiAGUKZIBDTAuMi42LjIuMi4yLjGYAQCgAQHAAQE&sclient=products-cc
B55: OBSERVAÇÕES:
A56: * | B56: Calculado com base na taxa SELIC JANEIRO/2024: | C56: 0.1175
B57: Taxa de Juros Selic — Português (Brasil) (www.gov.br)
A58: ** | B58: Conservação e manutenção - é calculado com o uso de um coeficiente multiplicador "k", conforme tabela abaixo, sobre a
B59: depreciação mensal do equipamento (Item A da planilha de composição de preços). Os valores de K são fornecidos por
B60: fabricantes.
B61: Metodologia conforme a bibliografia "Como Preparar Orçamentos de Obras", 3 edição, Aldo Dórea Mattos, 2019.

Sheet Cotação Voos
A1: COTAÇÕES - IDA DIA 07/04/2024 E VOLTA DIA 11/04/2024
A3: BSB - PALMAS | B3: Cia 1 | C3: Cia 2 | D3: Cia 3 | E3: Média
B4: 760 | C4: 760 | D4: 1308 | E4: =AVERAGE(B4:D4) -> 942.6666667
A29: BSB - Macapá | B29: Cia 1 | C29: Cia 2 | D29: Cia 3 | E29: Média
B30: 1306 | C30: 1591 | D30: 1882 | E30: =AVERAGE(B30:D30) -> 1593
A55: BSB - Montes Claros | B55: Cia 1 | C55: Cia 2 | D55: Cia 3 | E55: Média
B56: 856 | C56: 927 | D56: 1354 | E56: =AVERAGE(B56:D56) -> 1045.666667
A80: BSB - Joao Pessoa | B80: Cia 1 | C80: Cia 2 | D80: Cia 3 | E80: Média
B81: 1157 | C81: 1158 | D81: 2270 | E81: =AVERAGE(B81:D81) -> 1528.333333
A104: VALOR ADOTADO: | B104: =AVERAGE(E4:E81) -> 1277.416667

Sheet PFS-X -Equipamentos
A1: COMPOSIÇÃO DO CUSTO MENSAL - EQUIPAMENTOS DE INFORMÁTICA: NOTEBOOK,DRONE , RTK, RTK
A3: A – DEPRECIAÇÃO MENSAL DOS EQUIPAMENTOS
A4: A.1 Preço de aquisição (Cotação) | F4: =SUM(B26,B32,B38,B44) -> 63709.66
A5: A.2 Tempo previsto de vida útil (meses) | F5: 48
A6: A.3 Previsão de recup. na venda do bem usado (%) | F6: 0.5
A7: A.4 CUSTO MENSAL
F8: =(F4-(F6*F4))/F5 -> 663.6422917
A10: B – JUROS PELO CAPITAL EMPREGADO
A11: B.1 Taxa mensal de juros (%) | F11: =2% -> 0.02
A12: B.2 Juros s/ a depreciação/aluguel (B.1 x A.4) | F12: =F11*F8 -> 13.27284583
A14: C – CONSERVAÇÃO E MANUTENÇÃO
A15: C.1 Taxa de gastos sobre a depreciação mensal inclusive seguros (%) | F15: =1% -> 0.01
A16: C.2 Incidência mensal (C.1 x A.4) | F16: =F15*F8 -> 6.636422917
A18: VALOR TOTAL POR MÊS | F18: =F8+F12+F16 -> 683.5515604
A21: Cotação | B21: R$
A22: Aparelho GPS Garmin MAP65 MULTIBAND(GPS, GLONASS, GALILEO, QZSS)
A23: Cotação 1 | B23: 4895
A24: Cotação 2 | B24: 3749
A25: Cotação 3 | B25: 4249
A26: Preço médio | B26: =ROUND(AVERAGE(B23,B24,B25),2) -> 4297.67
A28: Aparelho Kit Receptores GNSS RTK CHC i73 Super Compacto com Sensor IMU e 1408 Canais
A29: Cotação 1 | B29: 48900
A30: Cotação 2 | B30: 39589
A31: Cotação 3 | B31: 39900
A32: Preço médio | B32: =ROUND(AVERAGE(B29,B30,B31),2) -> 42796.33
A34: Drone DJI Mine 4 Pro Fly More Combo Plus DJI RC Com Tela 4K 48MP DJI044
A35: Cotação 1 | B35: 12299
A36: Cotação 2 | B36: 10799
A37: Cotação 3 | B37: 10499
A38: Preço médio | B38: =ROUND(AVERAGE(B35,B36,B37),2) -> 11199
A40: Notebook - (Core i7, 4Gb RAM, 1Tb
A41: Cotação 1 | B41: 5199
A42: Cotação 2 | B42: 4751.99
A43: Cotação 3 | B43: 6299
A44: Preço médio | B44: =ROUND(AVERAGE(B41,B42,B43),2) -> 5416.66
G46: Objeto da cotação | H46: Obs.: Marca, modelo, capacidade, tipo, etc. | I46: Data da cotação | J46: Forma de cotação | K46: Empresa | L46: Valor cotação | M46: Média | N46: Mediana | O46: Mínimo | P46: Máximo | Q46: Contato
G47: GPS- Portátil Garmin GPSMAP 65 | I47: 2024-10-07 | J47: Site | K47: geotrackconsultoria | L47: 4895 | M47: =AVERAGE(L47:L49) -> 4297.666667 | N47: =MEDIAN(L47:L49) -> 4249 | O47: =MIN(L47:L49) -> 3749 | P47: =MAX(L47:L49) -> 4895 | Q47: https://www.mercadolivre.com.br/gps-portatil-garmin-map-65-mapa-rodoviario-topografico-cor-bege-mapas-pre-carregados-incluidos-sim/p/MLB27241540#wid%3DMLB3683801043%26sid%3Dsearch%26searchVariation%3DMLB27241540%26position%3D2%26search_layout%3Dstack%26type%3Dproduct%26tracking_id%3D8bd12d49-3b2b-4ba5-921e-47173181b3fb
I48: 2024-10-07 | J48: Site | K48: treinit | L48: 3749 | Q48: https://www.treinit.com.br/navegadores-gps-e-bussolas/outdoor/navegador-gps-garmin-gpsmap-65?parceiro=6975&gad_source=1&gclid=Cj0KCQjwjY64BhCaARIsAIfc7YZ6bkAHJnSeqB6zId2C0AGBDdcQhkZLuZ-feCU1HAj_7W1IHhC_LgYaAmIuEALw_wcB
I49: 2024-10-07 | J49: Site | K49: garminstore | L49: 4249 | Q49: https://www.garminstore.com.br/gps-portatil-garmin-gpsmap-65-/p?gad_source=1&gclid=Cj0KCQjwjY64BhCaARIsAIfc7YY_URuhEmws7R6GC73ZKiVCFcpRDLHeGGbTOQC3lKO2UkWxRHfk7EYaAoI7EALw_wcB&idsku=54390&skuId=54390
G50: RTK | H50: Kit Receptores GNSS RTK CHC i73 Super Compacto com Sensor IMU e 1408 Canais | I50: 2024-10-18 | J50: Site | K50: cpetecnologia | L50: 48900 | M50: =AVERAGE(L50:L52) -> 42796.33333 | N50: =MEDIAN(L50:L52) -> 39900 | O50: =MIN(L50:L52) -> 39589 | P50: =MAX(L50:L52) -> 48900 | Q50: https://www.cpetecnologia.com.br/kit-receptores-gnss-rtk-chc-i73-com-sensor-imu-1408-canais-super-compacto/p
H51: Receptor GNSS RTK Modelo S90 Kit Base e Rover | I51: 2024-01-29 | J51: Site | K51: geotrackconsultoria | L51: 39589 | Q51: https://www.geotrackconsultoria.com.br/receptor-gnss-rtk-modelo-s90-kit-base-e-rover?srsltid=AfmBOoqU5eyRnJ8_GUmpMasuSECdWfq0ZiBIkOpI8EcYpOK2TB9AH_Dj
H52: KIT RTK GNSS CHC i50 | I52: 2024-01-29 | J52: Site | K52: mercadotopografico | L52: 39900 | Q52: https://mercadotopografico.com.br//produto/385-kit-rtk-gnss-chc-i50?gad_source=4&gclid=CjwKCAjwjsi4BhB5EiwAFAL0YOiq7qwy1muoKfOVBv5Wr1tLWibY7-BsOY7PVrr568bbv_LwueoSDhoCPP4QAvD_BwE
G53: Drone DJI Mini 4 Pro Fly More Combo Plus (Com tela) BR - DJI044 | I53: 2024-10-07 | J53: Site | K53: geotrackconsultoria | L53: 12299 | M53: =AVERAGE(L53:L55) -> 11199 | N53: =MEDIAN(L53:L55) -> 10799 | O53: =MIN(L53:L55) -> 10499 | P53: =MAX(L53:L55) -> 12299 | Q53: https://www.lojadji.com.br/drone-dji-mini-4-pro-fly-more-combo-plus-dji-rc-2-dji044/p?idsku=8&utm_source=google-dji&utm_medium=ECM-cpc&utm_campaign=DJI_M2C_[P]_PMAX_Generica_ES_DJI_None_mid&cd=&mig=ok&z=&utm_term=&utm_content=&gad_source=1&gclid=Cj0KCQjwmt24BhDPARIsAJFYKk3OwcLSDMrmxPsMrqY2tpHstJAwb3ygCBzeFfXSApFymW-k5sL8H0YaAjOAEALw_wcB
I54: 2024-10-22 | J54: Site | K54: kabum | L54: 10799 | Q54: https://www.kabum.com.br/produto/580050/drone-dji-mini-4-pro-4k-camera-48mp-dji044?utm_id=20531423011&gad_source=1&gclid=Cj0KCQjwmt24BhDPARIsAJFYKk2ofDywfzByEV41W1I16xAzNsLl5pD3ICK0dHf55gjdfEs5W85R82YaAps5EALw_wcB
I55: 2024-10-22 | J55: Site | K55: primetek | L55: 10499 | Q55: https://www.primetek.com.br/drone-dji-mine-4-pro-fly-more-combo-plus-dji-rc-com-tela-4k/p?idsku=26001&gad_source=1&gclid=Cj0KCQjwmt24BhDPARIsAJFYKk22gUMgWXCVXvw_8V7NifrB11UuXggylpEGRi2dPeRA_1V9WDyG-2saApDZEALw_wcB
G56: Notebook | H56: Processador 13ª geração Intel® Core™ i7-1355U (10-core, cache de 12MB, até 5.0GHz) Sistema operacional (A Dell Technologies recomenda o Windows 11 Pro para empresas) Windows 11 Home, Português Placa de vídeo Intel® Iris® Xe com memória gráfica compartilhada Tela Full HD de 15.6" (1920 x 1080), 120 Hz, WVA Memória 16GB DDR4 (2x8GB) 2666MT/s; Limite de 16GB atingido (2 slots soDIMM) Armazenamento SSD de 1TB PCIe NVMe M.2 | I56: 2024-10-25 | J56: Site | K56: dell | L56: 5199 | M56: =AVERAGE(L56:L58) -> 5416.663333 | N56: =MEDIAN(L56:L58) -> 5199 | O56: =MIN(L56:L58) -> 4751.99 | P56: =MAX(L56:L58) -> 6299 | Q56: https://www.dell.com/pt-br/shop/cty/pdp/spd/inspiron-15-3530-laptop/brpichbto3530gqnzw?tfcid=31768715&gacd=9657105-15015-5761040-275878141-0&dgc=ST&cid=71700000114503108&gad_source=1&gclid=CjwKCAjwg-24BhB_EiwA1ZOx8kiiaFIZL8WsX_shSAXnx-UcqZLKXT9-wHv3M-Mv3DmQOd5Em1i5sxoCU8gQAvD_BwE&gclsrc=aw.ds
H57: Processador Intel® Core™ i7 até de 12ª geração Sistema operacional Até Windows 11 Pro Tela FHD TN de 14″ (1.920 x 1.080), antirreflexo, 250 nits FHD IPS de 14″ (1.920 x 1.080), antirreflexo, 300 nits Proporção tela-corpo de 88% Para ambas as opções de tela, proporção = 16:9. Memória Até 16 GB, integrada e DIMM (canal duplo), 3.200 MHz Armazenamento PCIe M.2 de até 512 GB HD de até 1 TB Compatível com duas unidades (apenas HD até 1 TB e SSD de 256 GB) Placa de vídeo UHD Intel® integrada Opcional: Intel® Iris® Xe Bateria Até 5,8 horas, 38 Wh (MM18) Até 7,1 horas, 45 Wh (MM18) Ambas são compatíveis com Rapid Charge (60 minutos = 80%) com adaptador de 65 W ou superior *Todas as afirmações quanto à vida útil da bateria são aproximadas e baseadas nos resultados dos testes de benchmark de duração da bateria do MobileMark® 2018. A real vida útil da bateria varia e depende de diversos fatores, incluindo configuração e uso do produto, software, condições de operação, funcionalidade sem fio, configurações de gerenciamento de energia e brilho da tela. A capacidade máxima da bateria diminuirá com o tempo e o uso. | I57: 2024-10-25 | J57: Site | K57: Lenovo | L57: 4751.99 | Q57: https://www.lenovo.com/br/pt/p/laptops/lenovo-laptops/v-series/lenovo-v14-g3-iap(brazil)/82ul0017br?cid=br:sem|se|google|j-b2c-commercial_notebook-convers-google-performancemax-intelccf|||82UL0017BR|18004393355|||pmax||commercial&gad_source=1&gclid=CjwKCAjwg-24BhB_EiwA1ZOx8reHCtdYCDN0-LjnIzv6MRmC6weJofYqSPVFh3SdJhnmrUp6UtzMbxoCz1cQAvD_BwE
H58: VAIO_FH15_Ang-teclado VAIO_FH15_Ang-ladoaberto VAIO_FH15_Ang-fechado VAIO_FH15_Ang-tecladoLado VAIO_FH15_Ang-espessura VAIO_FH15_Ang-entradas 2 avaliações Notebook VAIO® FH15 Intel® Core™ i7-12650H Shell Efi GeForce RTX® 3050 32GB RAM 1TB SSD 15.6" Full HD - Cinza Escuro | I58: 2024-10-25 | J58: Site | K58: vaio | L58: 6299 | Q58: https://www.br.vaio.com/notebook-vaio-fh15-core-i7-geforce-rtx-3050-32gb-1tb-15-6-fullhd-cinza-escuro-3344256/p?idsku=43868&utm_source=google&utm_medium=cpc&utm_campaign=smart-shopping-ecom-intel&utm_term=pmx&utm_content=vaio&gad_source=1&gclid=CjwKCAjwg-24BhB_EiwA1ZOx8pTyDT0cW_ROnAD4WjxePeuyu6cOsCbEzpZh6I0fMRlSViUTb78lShoCFs0QAvD_BwE

Sheet MDO_DNIT
A1: Código | B1: Categoria | C1: Unid. | D1: Salário | E1: Encargos Sociais | G1: Encargos Complementares | Q1: Encargos Adicionais | W1: Encargos Totais | Y1: Valor Total | Z1: Encargos Adicionais e Complementares | AA1: BASE:
G2: Alimentação | I2: EPI | K2: Ferramenta | M2: Transporte | O2: Exame Ocupacional | Q2: Cesta Básica | S2: Assistência Médica | U2: Seguro de Vida | AA2: SINAPI/DF Set/2024
D3: R$ | E3: % | F3: R$ | G3: % | H3: R$ | I3: % | J3: R$ | K3: % | L3: R$ | M3: % | N3: R$ | O3: % | P3: R$ | Q3: % | R3: R$ | S3: % | T3: R$ | U3: % | V3: R$ | W3: % | X3: R$ | Y3: R$ | Z3: R$
A4: Profissionais mensalistas
A5: P8001 | B5: Advogado júnior | C5: mês | D5: 4616.38 | E5: 0.793 | F5: 3660.79 | G5: 0.1596 | H5: 736.74 | I5: 0.0055 | J5: 25.51 | K5: 0 | L5: 0 | M5: 0 | N5: 0 | O5: 0.0006 | P5: 2.95 | Q5: 0 | R5: 0 | S5: 0.064 | T5: 295.48 | U5: 0.0022 | V5: 9.98 | W5: 1.0249 | X5: 4731.45 | Y5: 9347.83 | Z5: =Y5-F5-D5 -> 1070.66
A6: P8002 | B6: Advogado pleno | C6: mês | D6: 6155.17 | E6: 0.793 | F6: 4881.05 | G6: 0.1197 | H6: 736.74 | I6: 0.0041 | J6: 25.51 | K6: 0 | L6: 0 | M6: 0 | N6: 0 | O6: 0.0005 | P6: 2.95 | Q6: 0 | R6: 0 | S6: 0.048 | T6: 295.48 | U6: 0.0016 | V6: 9.98 | W6: 0.9669 | X6: 5951.71 | Y6: 12106.89 | Z6: =Y6-F6-D6 -> 1070.67
A7: P8003 | B7: Advogado sênior | C7: mês | D7: 11441.04 | E7: 0.793 | F7: 9072.75 | G7: 0.0644 | H7: 736.74 | I7: 0.0022 | J7: 25.51 | K7: 0 | L7: 0 | M7: 0 | N7: 0 | O7: 0.0003 | P7: 2.95 | Q7: 0 | R7: 0 | S7: 0.0258 | T7: 295.48 | U7: 0.0009 | V7: 9.98 | W7: 0.8866 | X7: 10143.41 | Y7: 21584.45 | Z7: 1070.66
A8: P8007 | B8: Analista de desenvolvimento de sistemas júnior | C8: mês | D8: 4690.87 | E8: 0.7963 | F8: 3735.34 | G8: 0.1571 | H8: 736.74 | I8: 0 | J8: 0 | K8: 0 | L8: 0 | M8: 0 | N8: 0 | O8: 0.0008 | P8: 3.74 | Q8: 0 | R8: 0 | S8: 0.063 | T8: 295.48 | U8: 0.0021 | V8: 9.98 | W8: 1.0193 | X8: 4781.28 | Y8: 9472.16 | Z8: 1045.95
A9: P8008 | B9: Analista de desenvolvimento de sistemas pleno | C9: mês | D9: 5657.08 | E9: 0.7963 | F9: 4504.74 | G9: 0.1302 | H9: 736.74 | I9: 0 | J9: 0 | K9: 0 | L9: 0 | M9: 0 | N9: 0 | O9: 0.0007 | P9: 3.74 | Q9: 0 | R9: 0 | S9: 0.0522 | T9: 295.48 | U9: 0.0018 | V9: 9.98 | W9: 0.9812 | X9: 5550.68 | Y9: 11207.76 | Z9: 1045.94
A10: P8009 | B10: Analista de desenvolvimento de sistemas sênior | C10: mês | D10: 9897.56 | E10: 0.7963 | F10: 7881.43 | G10: 0.0744 | H10: 736.74 | I10: 0 | J10: 0 | K10: 0 | L10: 0 | M10: 0 | N10: 0 | O10: 0.0004 | P10: 3.74 | Q10: 0 | R10: 0 | S10: 0.0299 | T10: 295.48 | U10: 0.001 | V10: 9.98 | W10: 0.902 | X10: 8927.37 | Y10: 18824.92 | Z10: 1045.93
A11: P8013 | B11: Arquiteto júnior | C11: mês | D11: 12002 | E11: 0.7932 | F11: 9519.99 | G11: 0.0614 | H11: 736.74 | I11: 0.0021 | J11: 25.51 | K11: 0 | L11: 0 | M11: 0 | N11: 0 | O11: 0.0002 | P11: 2.61 | Q11: 0 | R11: 0 | S11: 0.0246 | T11: 295.48 | U11: 0.0008 | V11: 9.98 | W11: 0.8824 | X11: 10590.31 | Y11: 22592.31 | Z11: 1070.32
A12: P8014 | B12: Arquiteto pleno | C12: mês | D12: 12521.12 | E12: 0.7932 | F12: 9931.75 | G12: 0.0588 | H12: 736.74 | I12: 0.002 | J12: 25.51 | K12: 0 | L12: 0 | M12: 0 | N12: 0 | O12: 0.0002 | P12: 2.61 | Q12: 0 | R12: 0 | S12: 0.0236 | T12: 295.48 | U12: 0.0008 | V12: 9.98 | W12: 0.8787 | X12: 11002.08 | Y12: 23523.2 | Z12: 1070.33
A13: P8015 | B13: Arquiteto sênior | C13: mês | D13: 15280.37 | E13: 0.7932 | F13: 12120.39 | G13: 0.0482 | H13: 736.74 | I13: 0.0017 | J13: 25.51 | K13: 0 | L13: 0 | M13: 0 | N13: 0 | O13: 0.0002 | P13: 2.61 | Q13: 0 | R13: 0 | S13: 0.0193 | T13: 295.48 | U13: 0.0007 | V13: 9.98 | W13: 0.8632 | X13: 13190.72 | Y13: 28471.09 | Z13: 1070.33
A14: P8019 | B14: Assistente social júnior | C14: mês | D14: 3264.91 | E14: 0.8016 | F14: 2617.15 | G14: 0.2257 | H14: 736.74 | I14: 0.0078 | J14: 25.51 | K14: 0 | L14: 0 | M14: 0.0071 | N14: 23.14 | O14: 0.0013 | P14: 4.29 | Q14: 0 | R14: 0 | S14: 0.0905 | T14: 295.48 | U14: 0.0031 | V14: 9.98 | W14: 1.137 | X14: 3712.3 | Y14: 6977.21 | Z14: 1095.15
A15: P8020 | B15: Assistente social pleno | C15: mês | D15: 4353.21 | E15: 0.8016 | F15: 3489.54 | G15: 0.1692 | H15: 736.74 | I15: 0.0059 | J15: 25.51 | K15: 0 | L15: 0 | M15: 0 | N15: 0 | O15: 0.001 | P15: 4.29 | Q15: 0 | R15: 0 | S15: 0.0679 | T15: 295.48 | U15: 0.0023 | V15: 9.98 | W15: 1.0479 | X15: 4561.55 | Y15: 8914.76 | Z15: 1072.01
A16: P8021 | B16: Assistente social sênior | C16: mês | D16: 7202.11 | E16: 0.8016 | F16: 5773.22 | G16: 0.1023 | H16: 736.74 | I16: 0.0035 | J16: 25.51 | K16: 0 | L16: 0 | M16: 0 | N16: 0 | O16: 0.0006 | P16: 4.29 | Q16: 0 | R16: 0 | S16: 0.041 | T16: 295.48 | U16: 0.0014 | V16: 9.98 | W16: 0.9504 | X16: 6845.22 | Y16: 14047.34 | Z16: 1072.01
A17: P8025 | B17: Auxiliar | C17: mês | D17: 1583.76 | E17: 0.8156 | F17: 1291.72 | G17: 0.4652 | H17: 736.74 | I17: 0.0196 | J17: 31.06 | K17: 0.001 | L17: 1.59 | M17: 0.0783 | N17: 124.01 | O17: 0.0039 | P17: 6.15 | Q17: 0 | R17: 0 | S17: 0.1866 | T17: 295.48 | U17: 0.0063 | V17: 9.98 | W17: 1.5765 | X17: 2496.73 | Y17: 4080.5 | Z17: 1205.02
A18: P8026 | B18: Auxiliar administrativo | C18: mês | D18: 1880.26 | E18: 0.8017 | F18: 1507.4 | G18: 0.3918 | H18: 736.74 | I18: 0 | J18: 0 | K18: 0 | L18: 0 | M18: 0.0565 | N18: 106.22 | O18: 0.002 | P18: 3.76 | Q18: 0 | R18: 0 | S18: 0.1571 | T18: 295.48 | U18: 0.0053 | V18: 9.98 | W18: 1.4145 | X18: 2659.59 | Y18: 4539.85 | Z18: 1152.19
A19: P8027 | B19: Auxiliar de laboratório | C19: mês | D19: 1753.34 | E19: 0.8036 | F19: 1408.99 | G19: 0.4202 | H19: 736.74 | I19: 0.0177 | J19: 31.06 | K19: 0.0019 | L19: 3.28 | M19: 0.0649 | N19: 113.83 | O19: 0.0023 | P19: 4.02 | Q19: 0 | R19: 0 | S19: 0.1685 | T19: 295.48 | U19: 0.0057 | V19: 9.98 | W19: 1.4848 | X19: 2603.38 | Y19: 4356.73 | Z19: 1194.4
A20: P8028 | B20: Auxiliar de topografia | C20: mês | D20: 1583.76 | E20: 0.8062 | F20: 1276.83 | G20: 0.4652 | H20: 736.74 | I20: 0.0196 | J20: 31.06 | K20: 0.0009 | L20: 1.39 | M20: 0.0783 | N20: 124.01 | O20: 0.0028 | P20: 4.39 | Q20: 0 | R20: 0 | S20: 0.1866 | T20: 295.48 | U20: 0.0063 | V20: 9.98 | W20: 1.5658 | X20: 2479.88 | Y20: 4063.64 | Z20: 1203.05
A21: P8032 | B21: Biólogo júnior | C21: mês | D21: 3224.68 | E21: 0.797 | F21: 2570.07 | G21: 0.2285 | H21: 736.74 | I21: 0.0079 | J21: 25.51 | K21: 0 | L21: 0 | M21: 0.0079 | N21: 25.55 | O21: 0.0011 | P21: 3.6 | Q21: 0 | R21: 0 | S21: 0.0916 | T21: 295.48 | U21: 0.0031 | V21: 9.98 | W21: 1.1371 | X21: 3666.94 | Y21: 6891.62 | Z21: 1096.87
A22: P8033 | B22: Biólogo pleno | C22: mês | D22: 4299.57 | E22: 0.797 | F22: 3426.76 | G22: 0.1714 | H22: 736.74 | I22: 0.0059 | J22: 25.51 | K22: 0 | L22: 0 | M22: 0 | N22: 0 | O22: 0.0008 | P22: 3.6 | Q22: 0 | R22: 0 | S22: 0.0687 | T22: 295.48 | U22: 0.0023 | V22: 9.98 | W22: 1.0462 | X22: 4498.08 | Y22: 8797.65 | Z22: 1071.32
A23: P8034 | B23: Biólogo sênior | C23: mês | D23: 7659.98 | E23: 0.797 | F23: 6105.01 | G23: 0.0962 | H23: 736.74 | I23: 0.0033 | J23: 25.51 | K23: 0 | L23: 0 | M23: 0 | N23: 0 | O23: 0.0005 | P23: 3.6 | Q23: 0 | R23: 0 | S23: 0.0386 | T23: 295.48 | U23: 0.0013 | V23: 9.98 | W23: 0.9369 | X23: 7176.33 | Y23: 14836.31 | Z23: 1071.32
A24: P8038 | B24: Chefe de escritório | C24: mês | D24: 3337.76 | E24: 0.7939 | F24: 2649.85 | G24: 0.2207 | H24: 736.74 | I24: 0 | J24: 0 | K24: 0 | L24: 0 | M24: 0.0056 | N24: 18.77 | O24: 0.0008 | P24: 2.81 | Q24: 0 | R24: 0 | S24: 0.0885 | T24: 295.48 | U24: 0.003 | V24: 9.98 | W24: 1.1126 | X24: 3713.63 | Y24: 7051.4 | Z24: 1063.79
A25: P8040 | B25: Contador júnior | C25: mês | D25: 4191.21 | E25: 0.7936 | F25: 3326.15 | G25: 0.1758 | H25: 736.74 | I25: 0 | J25: 0 | K25: 0 | L25: 0 | M25: 0 | N25: 0 | O25: 0.0006 | P25: 2.69 | Q25: 0 | R25: 0 | S25: 0.0705 | T25: 295.48 | U25: 0.0024 | V25: 9.98 | W25: 1.0429 | X25: 4371.04 | Y25: 8562.25 | Z25: 1044.89
A26: P8041 | B26: Contador pleno | C26: mês | D26: 5588.28 | E26: 0.7936 | F26: 4434.86 | G26: 0.1318 | H26: 736.74 | I26: 0 | J26: 0 | K26: 0 | L26: 0 | M26: 0 | N26: 0 | O26: 0.0005 | P26: 2.69 | Q26: 0 | R26: 0 | S26: 0.0529 | T26: 295.48 | U26: 0.0018 | V26: 9.98 | W26: 0.9806 | X26: 5479.76 | Y26: 11068.04 | Z26: 1044.9
A27: P8042 | B27: Contador sênior | C27: mês | D27: 10788.12 | E27: 0.7936 | F27: 8561.45 | G27: 0.0683 | H27: 736.74 | I27: 0 | J27: 0 | K27: 0 | L27: 0 | M27: 0 | N27: 0 | O27: 0.0002 | P27: 2.69 | Q27: 0 | R27: 0 | S27: 0.0274 | T27: 295.48 | U27: 0.0009 | V27: 9.98 | W27: 0.8905 | X27: 9606.34 | Y27: 20394.46 | Z27: 1044.89
A28: P8044 | B28: Coordenador ambiental | C28: mês | D28: 18689.66 | E28: 0.7968 | F28: 14891.92 | G28: 0.0394 | H28: 736.74 | I28: 0.0012 | J28: 23.3 | K28: 0 | L28: 0 | M28: 0 | N28: 0 | O28: 0.0002 | P28: 3.98 | Q28: 0 | R28: 0 | S28: 0.0158 | T28: 295.48 | U28: 0.0005 | V28: 9.98 | W28: 0.854 | X28: 15961.41 | Y28: 34651.08 | Z28: 1069.5
A29: P8045 | B29: Economista júnior | C29: mês | D29: 4750.1 | E29: 0.7861 | F29: 3734.05 | G29: 0.1551 | H29: 736.74 | I29: 0 | J29: 0 | K29: 0 | L29: 0 | M29: 0 | N29: 0 | O29: 0.0004 | P29: 1.9 | Q29: 0 | R29: 0 | S29: 0.0622 | T29: 295.48 | U29: 0.0021 | V29: 9.98 | W29: 1.0059 | X29: 4778.15 | Y29: 9528.25 | Z29: 1044.1
A30: P8046 | B30: Economista pleno | C30: mês | D30: 6333.46 | E30: 0.7861 | F30: 4978.74 | G30: 0.1163 | H30: 736.74 | I30: 0 | J30: 0 | K30: 0 | L30: 0 | M30: 0 | N30: 0 | O30: 0.0003 | P30: 1.9 | Q30: 0 | R30: 0 | S30: 0.0467 | T30: 295.48 | U30: 0.0016 | V30: 9.98 | W30: 0.951 | X30: 6022.84 | Y30: 12356.3 | Z30: 1044.1
A31: P8047 | B31: Economista sênior | C31: mês | D31: 10433.39 | E31: 0.7861 | F31: 8201.69 | G31: 0.0706 | H31: 736.74 | I31: 0 | J31: 0 | K31: 0 | L31: 0 | M31: 0 | N31: 0 | O31: 0.0002 | P31: 1.9 | Q31: 0 | R31: 0 | S31: 0.0283 | T31: 295.48 | U31: 0.001 | V31: 9.98 | W31: 0.8862 | X31: 9245.79 | Y31: 19679.19 | Z31: 1044.11
A32: P8054 | B32: Engenheiro agrônomo júnior | C32: mês | D32: 12002 | E32: 0.7908 | F32: 9491.18 | G32: 0.0614 | H32: 736.74 | I32: 0.0021 | J32: 25.51 | K32: 0 | L32: 0 | M32: 0 | N32: 0 | O32: 0.0002 | P32: 2.5 | Q32: 0 | R32: 0 | S32: 0.0246 | T32: 295.48 | U32: 0.0008 | V32: 9.98 | W32: 0.88 | X32: 10561.4 | Y32: 22563.4 | Z32: 1070.22
A33: P8055 | B33: Engenheiro agrônomo pleno | C33: mês | D33: 12380.97 | E33: 0.7908 | F33: 9790.87 | G33: 0.0595 | H33: 736.74 | I33: 0.0021 | J33: 25.51 | K33: 0 | L33: 0 | M33: 0 | N33: 0 | O33: 0.0002 | P33: 2.5 | Q33: 0 | R33: 0 | S33: 0.0239 | T33: 295.48 | U33: 0.0008 | V33: 9.98 | W33: 0.8772 | X33: 10861.09 | Y33: 23242.06 | Z33: 1070.22
A34: P8056 | B34: Engenheiro agrônomo sênior | C34: mês | D34: 13631.64 | E34: 0.7908 | F34: 10779.9 | G34: 0.054 | H34: 736.74 | I34: 0.0019 | J34: 25.51 | K34: 0 | L34: 0 | M34: 0 | N34: 0 | O34: 0.0002 | P34: 2.5 | Q34: 0 | R34: 0 | S34: 0.0217 | T34: 295.48 | U34: 0.0007 | V34: 9.98 | W34: 0.8693 | X34: 11850.12 | Y34: 25481.76 | Z34: 1070.22
A35: P8057 | B35: Engenheiro ambiental júnior | C35: mês | D35: 12002 | E35: 0.7982 | F35: 9580 | G35: 0.0614 | H35: 736.74 | I35: 0.0021 | J35: 25.51 | K35: 0 | L35: 0 | M35: 0 | N35: 0 | O35: 0.0004 | P35: 4.35 | Q35: 0 | R35: 0 | S35: 0.0246 | T35: 295.48 | U35: 0.0008 | V35: 9.98 | W35: 0.8875 | X35: 10652.07 | Y35: 22654.07 | Z35: 1072.07
A36: P8058 | B36: Engenheiro ambiental pleno | C36: mês | D36: 12193.36 | E36: 0.7982 | F36: 9732.74 | G36: 0.0604 | H36: 736.74 | I36: 0.0021 | J36: 25.51 | K36: 0 | L36: 0 | M36: 0 | N36: 0 | O36: 0.0004 | P36: 4.35 | Q36: 0 | R36: 0 | S36: 0.0242 | T36: 295.48 | U36: 0.0008 | V36: 9.98 | W36: 0.8861 | X36: 10804.81 | Y36: 22998.17 | Z36: 1072.07
A37: P8059 | B37: Engenheiro ambiental sênior | C37: mês | D37: 14759.24 | E37: 0.7982 | F37: 11780.83 | G37: 0.0499 | H37: 736.74 | I37: 0.0017 | J37: 25.51 | K37: 0 | L37: 0 | M37: 0 | N37: 0 | O37: 0.0003 | P37: 4.35 | Q37: 0 | R37: 0 | S37: 0.02 | T37: 295.48 | U37: 0.0007 | V37: 9.98 | W37: 0.8708 | X37: 12852.9 | Y37: 27612.14 | Z37: 1072.07
A38: P8060 | B38: Engenheiro consultor especial | C38: mês | D38: 21827.91 | E38: 0.7976 | F38: 17409.94 | G38: 0.0338 | H38: 736.74 | I38: 0.0011 | J38: 23.3 | K38: 0 | L38: 0 | M38: 0 | N38: 0 | O38: 0.0002 | P38: 3.99 | Q38: 0 | R38: 0 | S38: 0.0135 | T38: 295.48 | U38: 0.0005 | V38: 9.98 | W38: 0.8466 | X38: 18479.44 | Y38: 40307.36 | Z38: 1069.51
A39: P8061 | B39: Engenheiro coordenador | C39: mês | D39: 18189.93 | E39: 0.7976 | F39: 14508.29 | G39: 0.0405 | H39: 736.74 | I39: 0.0013 | J39: 23.3 | K39: 0 | L39: 0 | M39: 0 | N39: 0 | O39: 0.0002 | P39: 3.99 | Q39: 0 | R39: 0 | S39: 0.0162 | T39: 295.48 | U39: 0.0005 | V39: 9.98 | W39: 0.8564 | X39: 15577.78 | Y39: 33767.71 | Z39: 1069.49
A40: P8062 | B40: Engenheiro de pesca júnior | C40: mês | D40: 12002 | E40: 0.8013 | F40: 9617.2 | G40: 0.0614 | H40: 736.74 | I40: 0.0021 | J40: 25.51 | K40: 0 | L40: 0 | M40: 0 | N40: 0 | O40: 0.0004 | P40: 4.74 | Q40: 0 | R40: 0 | S40: 0.0246 | T40: 295.48 | U40: 0.0008 | V40: 9.98 | W40: 0.8907 | X40: 10689.66 | Y40: 22691.66 | Z40: 1072.46
A41: P8063 | B41: Engenheiro de pesca pleno | C41: mês | D41: 12714.67 | E41: 0.8013 | F41: 10188.27 | G41: 0.0579 | H41: 736.74 | I41: 0.002 | J41: 25.51 | K41: 0 | L41: 0 | M41: 0 | N41: 0 | O41: 0.0004 | P41: 4.74 | Q41: 0 | R41: 0 | S41: 0.0232 | T41: 295.48 | U41: 0.0008 | V41: 9.98 | W41: 0.8856 | X41: 11260.73 | Y41: 23975.4 | Z41: 1072.46
A42: P8064 | B42: Engenheiro de pesca sênior | C42: mês | D42: 16261.81 | E42: 0.8013 | F42: 13030.59 | G42: 0.0453 | H42: 736.74 | I42: 0.0016 | J42: 25.51 | K42: 0 | L42: 0 | M42: 0 | N42: 0 | O42: 0.0003 | P42: 4.74 | Q42: 0 | R42: 0 | S42: 0.0182 | T42: 295.48 | U42: 0.0006 | V42: 9.98 | W42: 0.8673 | X42: 14103.05 | Y42: 30364.86 | Z42: 1072.46
A43: P8065 | B43: Engenheiro de projetos júnior | C43: mês | D43: 12002 | E43: 0.7976 | F43: 9572.8 | G43: 0.0614 | H43: 736.74 | I43: 0.0021 | J43: 25.51 | K43: 0 | L43: 0 | M43: 0 | N43: 0 | O43: 0.0003 | P43: 3.99 | Q43: 0 | R43: 0 | S43: 0.0246 | T43: 295.48 | U43: 0.0008 | V43: 9.98 | W43: 0.8869 | X43: 10644.5 | Y43: 22646.5 | Z43: 1071.7
A44: P8066 | B44: Engenheiro de projetos pleno | C44: mês | D44: 12629.6 | E44: 0.7976 | F44: 10073.37 | G44: 0.0583 | H44: 736.74 | I44: 0.002 | J44: 25.51 | K44: 0 | L44: 0 | M44: 0 | N44: 0 | O44: 0.0003 | P44: 3.99 | Q44: 0 | R44: 0 | S44: 0.0234 | T44: 295.48 | U44: 0.0008 | V44: 9.98 | W44: 0.8825 | X44: 11145.08 | Y44: 23774.68 | Z44: 1071.71
A45: P8067 | B45: Engenheiro de projetos sênior | C45: mês | D45: 15877.29 | E45: 0.7976 | F45: 12663.73 | G45: 0.0464 | H45: 736.74 | I45: 0.0016 | J45: 25.51 | K45: 0 | L45: 0 | M45: 0 | N45: 0 | O45: 0.0003 | P45: 3.99 | Q45: 0 | R45: 0 | S45: 0.0186 | T45: 295.48 | U45: 0.0006 | V45: 9.98 | W45: 0.8651 | X45: 13735.44 | Y45: 29612.73 | Z45: 1071.71
A46: P8068 | B46: Engenheiro florestal júnior | C46: mês | D46: 12002 | E46: 0.8013 | F46: 9617.2 | G46: 0.0614 | H46: 736.74 | I46: 0.0021 | J46: 25.51 | K46: 0 | L46: 0 | M46: 0 | N46: 0 | O46: 0.0004 | P46: 4.74 | Q46: 0 | R46: 0 | S46: 0.0246 | T46: 295.48 | U46: 0.0008 | V46: 9.98 | W46: 0.8907 | X46: 10689.66 | Y46: 22691.66 | Z46: 1072.46
A47: P8069 | B47: Engenheiro florestal pleno | C47: mês | D47: 12714.67 | E47: 0.8013 | F47: 10188.27 | G47: 0.0579 | H47: 736.74 | I47: 0.002 | J47: 25.51 | K47: 0 | L47: 0 | M47: 0 | N47: 0 | O47: 0.0004 | P47: 4.74 | Q47: 0 | R47: 0 | S47: 0.0232 | T47: 295.48 | U47: 0.0008 | V47: 9.98 | W47: 0.8856 | X47: 11260.73 | Y47: 23975.4 | Z47: 1072.46
A48: P8070 | B48: Engenheiro florestal sênior | C48: mês | D48: 16261.81 | E48: 0.8013 | F48: 13030.59 | G48: 0.0453 | H48: 736.74 | I48: 0.0016 | J48: 25.51 | K48: 0 | L48: 0 | M48: 0 | N48: 0 | O48: 0.0003 | P48: 4.74 | Q48: 0 | R48: 0 | S48: 0.0182 | T48: 295.48 | U48: 0.0006 | V48: 9.98 | W48: 0.8673 | X48: 14103.05 | Y48: 30364.86 | Z48: 1072.46
A49: P8080 | B49: Geólogo júnior | C49: mês | D49: 10004.5 | E49: 0.8008 | F49: 8011.6 | G49: 0.0677 | H49: 677.01 | I49: 0.0026 | J49: 25.51 | K49: 0 | L49: 0 | M49: 0 | N49: 0 | O49: 0.0003 | P49: 3.42 | Q49: 0 | R49: 0 | S49: 0.0295 | T49: 295.48 | U49: 0.001 | V49: 9.98 | W49: 0.9019 | X49: 9023.01 | Y49: 19027.51 | Z49: 1011.41
A50: P8081 | B50: Geólogo pleno | C50: mês | D50: 11911.59 | E50: 0.8008 | F50: 9538.8 | G50: 0.0568 | H50: 677.01 | I50: 0.0021 | J50: 25.51 | K50: 0 | L50: 0 | M50: 0 | N50: 0 | O50: 0.0003 | P50: 3.42 | Q50: 0 | R50: 0 | S50: 0.0248 | T50: 295.48 | U50: 0.0008 | V50: 9.98 | W50: 0.8857 | X50: 10550.2 | Y50: 22461.79 | Z50: 1011.4
A51: P8082 | B51: Geólogo sênior | C51: mês | D51: 13818.68 | E51: 0.8008 | F51: 11066 | G51: 0.049 | H51: 677.01 | I51: 0.0018 | J51: 25.51 | K51: 0 | L51: 0 | M51: 0 | N51: 0 | O51: 0.0002 | P51: 3.42 | Q51: 0 | R51: 0 | S51: 0.0214 | T51: 295.48 | U51: 0.0007 | V51: 9.98 | W51: 0.874 | X51: 12077.4 | Y51: 25896.07 | Z51: 1011.39
A52: P8092 | B52: Jornalista júnior | C52: mês | D52: 3073.16 | E52: 0.7955 | F52: 2444.7 | G52: 0.2397 | H52: 736.74 | I52: 0.0083 | J52: 25.51 | K52: 0 | L52: 0 | M52: 0.0113 | N52: 34.64 | O52: 0.0009 | P52: 2.68 | Q52: 0 | R52: 0 | S52: 0.0961 | T52: 295.48 | U52: 0.0032 | V52: 9.98 | W52: 1.1551 | X52: 3549.74 | Y52: 6622.9 | Z52: 1105.04
A53: P8093 | B53: Jornalista pleno | C53: mês | D53: 4097.55 | E53: 0.7955 | F53: 3259.6 | G53: 0.1798 | H53: 736.74 | I53: 0.0062 | J53: 25.51 | K53: 0 | L53: 0 | M53: 0 | N53: 0 | O53: 0.0007 | P53: 2.68 | Q53: 0 | R53: 0 | S53: 0.0721 | T53: 295.48 | U53: 0.0024 | V53: 9.98 | W53: 1.0567 | X53: 4330 | Y53: 8427.55 | Z53: 1070.4
A54: P8094 | B54: Jornalista sênior | C54: mês | D54: 7891.46 | E54: 0.7955 | F54: 6277.65 | G54: 0.0934 | H54: 736.74 | I54: 0.0032 | J54: 25.51 | K54: 0 | L54: 0 | M54: 0 | N54: 0 | O54: 0.0003 | P54: 2.68 | Q54: 0 | R54: 0 | S54: 0.0374 | T54: 295.48 | U54: 0.0013 | V54: 9.98 | W54: 0.9311 | X54: 7348.05 | Y54: 15239.51 | Z54: 1070.4
A55: P8098 | B55: Laboratorista | C55: mês | D55: 2337.79 | E55: 0.8036 | F55: 1878.65 | G55: 0.3151 | H55: 736.74 | I55: 0.0122 | J55: 28.6 | K55: 0 | L55: 0 | M55: 0.0337 | N55: 78.76 | O55: 0.0017 | P55: 4.02 | Q55: 0 | R55: 0 | S55: 0.1264 | T55: 295.48 | U55: 0.0043 | V55: 9.98 | W55: 1.2971 | X55: 3032.24 | Y55: 5370.03 | Z55: 1153.59
A56: P8102 | B56: Médico veterinário | C56: mês | D56: 12002 | E56: 0.7908 | F56: 9491.18 | G56: 0.0614 | H56: 736.74 | I56: 0.0021 | J56: 25.51 | K56: 0 | L56: 0 | M56: 0 | N56: 0 | O56: 0.0002 | P56: 2.26 | Q56: 0 | R56: 0 | S56: 0.0246 | T56: 295.48 | U56: 0.0008 | V56: 9.98 | W56: 0.88 | X56: 10561.16 | Y56: 22563.16 | Z56: 1069.98
A57: P8106 | B57: Meteorologista júnior | C57: mês | D57: 5253.81 | E57: 0.7933 | F57: 4167.84 | G57: 0.1402 | H57: 736.74 | I57: 0.0049 | J57: 25.51 | K57: 0 | L57: 0 | M57: 0 | N57: 0 | O57: 0.0005 | P57: 2.63 | Q57: 0 | R57: 0 | S57: 0.0562 | T57: 295.48 | U57: 0.0019 | V57: 9.98 | W57: 0.997 | X57: 5238.19 | Y57: 10491.99 | Z57: 1070.34
A58: P8107 | B58: Meteorologista pleno | C58: mês | D58: 7005.07 | E58: 0.7933 | F58: 5557.12 | G58: 0.1052 | H58: 736.74 | I58: 0.0036 | J58: 25.51 | K58: 0 | L58: 0 | M58: 0 | N58: 0 | O58: 0.0004 | P58: 2.63 | Q58: 0 | R58: 0 | S58: 0.0422 | T58: 295.48 | U58: 0.0014 | V58: 9.98 | W58: 0.9461 | X58: 6627.47 | Y58: 13632.54 | Z58: 1070.35
A59: P8108 | B59: Meteorologista sênior | C59: mês | D59: 11774.37 | E59: 0.7933 | F59: 9340.61 | G59: 0.0626 | H59: 736.74 | I59: 0.0022 | J59: 25.51 | K59: 0 | L59: 0 | M59: 0 | N59: 0 | O59: 0.0002 | P59: 2.63 | Q59: 0 | R59: 0 | S59: 0.0251 | T59: 295.48 | U59: 0.0008 | V59: 9.98 | W59: 0.8842 | X59: 10410.95 | Y59: 22185.32 | Z59: 1070.34
A60: P8112 | B60: Motorista de caminhão | C60: mês | D60: 2332.4 | E60: 0.8057 | F60: 1879.21 | G60: 0.3014 | H60: 702.89 | I60: 0.0133 | J60: 31.06 | K60: 0 | L60: 0 | M60: 0.0339 | N60: 79.09 | O60: 0.0018 | P60: 4.24 | Q60: 0 | R60: 0 | S60: 0.1267 | T60: 295.48 | U60: 0.0043 | V60: 9.98 | W60: 1.2871 | X60: 3001.96 | Y60: 5334.36 | Z60: 1122.75
A61: P8113 | B61: Motorista de veículo leve | C61: mês | D61: 2065.77 | E61: 0.8013 | F61: 1655.3 | G61: 0.3403 | H61: 702.89 | I61: 0.015 | J61: 31.06 | K61: 0 | L61: 0 | M61: 0.046 | N61: 95.09 | O61: 0.0019 | P61: 3.85 | Q61: 0 | R61: 0 | S61: 0.143 | T61: 295.48 | U61: 0.0048 | V61: 9.98 | W61: 1.3524 | X61: 2793.65 | Y61: 4859.42 | Z61: 1138.35
A62: P8117 | B62: Oceanógrafo júnior | C62: mês | D62: 4510.24 | E62: 0.803 | F62: 3621.72 | G62: 0.1633 | H62: 736.74 | I62: 0.0057 | J62: 25.51 | K62: 0 | L62: 0 | M62: 0 | N62: 0 | O62: 0.0008 | P62: 3.57 | Q62: 0 | R62: 0 | S62: 0.0655 | T62: 295.48 | U62: 0.0022 | V62: 9.98 | W62: 1.0405 | X62: 4693.01 | Y62: 9203.25 | Z62: 1071.29
A63: P8118 | B63: Oceanógrafo pleno | C63: mês | D63: 6013.65 | E63: 0.803 | F63: 4828.96 | G63: 0.1225 | H63: 736.74 | I63: 0.0042 | J63: 25.51 | K63: 0 | L63: 0 | M63: 0 | N63: 0 | O63: 0.0006 | P63: 3.57 | Q63: 0 | R63: 0 | S63: 0.0491 | T63: 295.48 | U63: 0.0017 | V63: 9.98 | W63: 0.9811 | X63: 5900.25 | Y63: 11913.9 | Z63: 1071.29
A64: P8119 | B64: Oceanógrafo sênior | C64: mês | D64: 10872.11 | E64: 0.803 | F64: 8730.3 | G64: 0.0678 | H64: 736.74 | I64: 0.0023 | J64: 25.51 | K64: 0 | L64: 0 | M64: 0 | N64: 0 | O64: 0.0003 | P64: 3.57 | Q64: 0 | R64: 0 | S64: 0.0272 | T64: 295.48 | U64: 0.0009 | V64: 9.98 | W64: 0.9015 | X64: 9801.59 | Y64: 20673.69 | Z64: 1071.28
A65: P8129 | B65: Pedagogo júnior | C65: mês | D65: 2507.29 | E65: 0.9238 | F65: 2316.24 | G65: 0.2938 | H65: 736.74 | I65: 0.0102 | J65: 25.51 | K65: 0 | L65: 0 | M65: 0.0274 | N65: 68.59 | O65: 0.0104 | P65: 26 | Q65: 0 | R65: 0 | S65: 0.1178 | T65: 295.48 | U65: 0.004 | V65: 9.98 | W65: 1.3874 | X65: 3478.55 | Y65: 5985.84 | Z65: 1162.31
A66: P8130 | B66: Pedagogo pleno | C66: mês | D66: 3343.06 | E66: 0.9238 | F66: 3088.31 | G66: 0.2204 | H66: 736.74 | I66: 0.0076 | J66: 25.51 | K66: 0 | L66: 0 | M66: 0.0055 | N66: 18.45 | O66: 0.0078 | P66: 26 | Q66: 0 | R66: 0 | S66: 0.0884 | T66: 295.48 | U66: 0.003 | V66: 9.98 | W66: 1.2565 | X66: 4200.48 | Y66: 7543.53 | Z66: 1112.16
A67: P8131 | B67: Pedagogo sênior | C67: mês | D67: 4715.72 | E67: 0.9238 | F67: 4356.38 | G67: 0.1562 | H67: 736.74 | I67: 0.0054 | J67: 25.51 | K67: 0 | L67: 0 | M67: 0 | N67: 0 | O67: 0.0055 | P67: 26 | Q67: 0 | R67: 0 | S67: 0.0627 | T67: 295.48 | U67: 0.0021 | V67: 9.98 | W67: 1.1557 | X67: 5450.1 | Y67: 10165.82 | Z67: 1093.72
A68: P8135 | B68: Secretária | C68: mês | D68: 2697.38 | E68: 0.7984 | F68: 2153.59 | G68: 0.2731 | H68: 736.74 | I68: 0 | J68: 0 | K68: 0 | L68: 0 | M68: 0.0212 | N68: 57.19 | O68: 0.0014 | P68: 3.87 | Q68: 0 | R68: 0 | S68: 0.1095 | T68: 295.48 | U68: 0.0037 | V68: 9.98 | W68: 1.2074 | X68: 3256.85 | Y68: 5954.23 | Z68: 1103.26
A69: P8139 | B69: Sondador | C69: mês | D69: 2017.39 | E69: 0.8004 | F69: 1614.72 | G69: 0.3652 | H69: 736.74 | I69: 0.0142 | J69: 28.6 | K69: 0 | L69: 0 | M69: 0.0486 | N69: 97.99 | O69: 0.0022 | P69: 4.51 | Q69: 0 | R69: 0 | S69: 0.1465 | T69: 295.48 | U69: 0.0049 | V69: 9.98 | W69: 1.382 | X69: 2788.02 | Y69: 4805.42 | Z69: 1173.31
A70: P8143 | B70: Técnico ambiental | C70: mês | D70: 2911.08 | E70: 0.8064 | F70: 2347.49 | G70: 0.2531 | H70: 736.74 | I70: 0.0098 | J70: 28.6 | K70: 0 | L70: 0 | M70: 0.0152 | N70: 44.37 | O70: 0.0014 | P70: 4.05 | Q70: 0 | R70: 0 | S70: 0.1015 | T70: 295.48 | U70: 0.0034 | V70: 9.98 | W70: 1.1909 | X70: 3466.71 | Y70: 6377.79 | Z70: =Y70-F70-D70 -> 1119.22
A71: P8147 | B71: Técnico de obras | C71: mês | D71: 3184.9 | E71: 0.8021 | F71: 2554.61 | G71: 0.2313 | H71: 736.74 | I71: 0.009 | J71: 28.6 | K71: 0 | L71: 0 | M71: 0.0088 | N71: 27.94 | O71: 0.0012 | P71: 3.8 | Q71: 0 | R71: 0 | S71: 0.0928 | T71: 295.48 | U71: 0.0031 | V71: 9.98 | W71: 1.1483 | X71: 3657.15 | Y71: 6842.04 | Z71: 1102.53
A72: P8151 | B72: Técnico de segurança do trabalho | C72: mês | D72: 4601.83 | E72: 0.8092 | F72: 3723.8 | G72: 0.1601 | H72: 736.74 | I72: 0.0062 | J72: 28.6 | K72: 0 | L72: 0 | M72: 0 | N72: 0 | O72: 0.001 | P72: 4.67 | Q72: 0 | R72: 0 | S72: 0.0642 | T72: 295.48 | U72: 0.0022 | V72: 9.98 | W72: 1.0429 | X72: 4799.28 | Y72: 9401.11 | Z72: 1075.48
A73: P8155 | B73: Técnico em geoprocessamento | C73: mês | D73: 2879.59 | E73: 0.7961 | F73: 2292.44 | G73: 0.2558 | H73: 736.74 | I73: 0.0099 | J73: 28.6 | K73: 0 | L73: 0 | M73: 0.0161 | N73: 46.26 | O73: 0.0012 | P73: 3.53 | Q73: 0 | R73: 0 | S73: 0.1026 | T73: 295.48 | U73: 0.0035 | V73: 9.98 | W73: 1.1853 | X73: 3413.04 | Y73: 6292.64 | Z73: 1120.61
A74: P8159 | B74: Técnico em informática - programador | C74: mês | D74: 4690.87 | E74: 0.8008 | F74: 3756.45 | G74: 0.1571 | H74: 736.74 | I74: 0 | J74: 0 | K74: 0 | L74: 0 | M74: 0 | N74: 0 | O74: 0.0007 | P74: 3.45 | Q74: 0 | R74: 0 | S74: 0.063 | T74: 295.48 | U74: 0.0021 | V74: 9.98 | W74: 1.0237 | X74: 4802.1 | Y74: 9492.98 | Z74: 1045.66
A75: P8163 | B75: Topógrafo | C75: mês | D75: 2428.57 | E75: 0.8062 | F75: 1957.92 | G75: 0.3034 | H75: 736.74 | I75: 0.0118 | J75: 28.6 | K75: 0 | L75: 0 | M75: 0.0302 | N75: 73.32 | O75: 0.0018 | P75: 4.39 | Q75: 0 | R75: 0 | S75: 0.1217 | T75: 295.48 | U75: 0.0041 | V75: 9.98 | W75: 1.2791 | X75: 3106.43 | Y75: 5535 | Z75: 1148.51
A76: P8167 | B76: Arquivista júnior | C76: mês | D76: 2411.93 | E76: 0.7996 | F76: 1928.58 | G76: 0.3055 | H76: 736.74 | I76: 0 | J76: 0 | K76: 0 | L76: 0 | M76: 0.0308 | N76: 74.32 | O76: 0.0013 | P76: 3.15 | Q76: 0 | R76: 0 | S76: 0.1225 | T76: 295.48 | U76: 0.0041 | V76: 9.98 | W76: 1.2638 | X76: 3048.25 | Y76: 5460.17 | Z76: 1119.66
A77: P8168 | B77: Arquivista pleno | C77: mês | D77: 3215.9 | E77: 0.7996 | F77: 2571.43 | G77: 0.2291 | H77: 736.74 | I77: 0 | J77: 0 | K77: 0 | L77: 0 | M77: 0.0081 | N77: 26.08 | O77: 0.001 | P77: 3.15 | Q77: 0 | R77: 0 | S77: 0.0919 | T77: 295.48 | U77: 0.0031 | V77: 9.98 | W77: 1.1328 | X77: 3642.87 | Y77: 6858.77 | Z77: 1071.44
A78: P8169 | B78: Arquivista sênior | C78: mês | D78: 5113.29 | E78: 0.7996 | F78: 4088.59 | G78: 0.1441 | H78: 736.74 | I78: 0 | J78: 0 | K78: 0 | L78: 0 | M78: 0 | N78: 0 | O78: 0.0006 | P78: 3.15 | Q78: 0 | R78: 0 | S78: 0.0578 | T78: 295.48 | U78: 0.002 | V78: 9.98 | W78: 1.004 | X78: 5133.95 | Y78: 10247.24 | Z78: 1045.36
A79: P8173 | B79: Administrador júnior | C79: mês | D79: 3341.1 | E79: 0.7974 | F79: 2664.19 | G79: 0.2205 | H79: 736.74 | I79: 0 | J79: 0 | K79: 0 | L79: 0 | M79: 0.0056 | N79: 18.57 | O79: 0.0011 | P79: 3.58 | Q79: 0 | R79: 0 | S79: 0.0884 | T79: 295.48 | U79: 0.003 | V79: 9.98 | W79: 1.116 | X79: 3728.54 | Y79: 7069.64 | Z79: 1064.35
A80: P8174 | B80: Administrador pleno | C80: mês | D80: 4454.8 | E80: 0.7974 | F80: 3552.26 | G80: 0.1654 | H80: 736.74 | I80: 0 | J80: 0 | K80: 0 | L80: 0 | M80: 0 | N80: 0 | O80: 0.0008 | P80: 3.58 | Q80: 0 | R80: 0 | S80: 0.0663 | T80: 295.48 | U80: 0.0022 | V80: 9.98 | W80: 1.0322 | X80: 4598.04 | Y80: 9052.84 | Z80: 1045.78
A81: P8175 | B81: Administrador sênior | C81: mês | D81: 7993.16 | E81: 0.7974 | F81: 6373.75 | G81: 0.0922 | H81: 736.74 | I81: 0 | J81: 0 | K81: 0 | L81: 0 | M81: 0 | N81: 0 | O81: 0.0004 | P81: 3.58 | Q81: 0 | R81: 0 | S81: 0.037 | T81: 295.48 | U81: 0.0012 | V81: 9.98 | W81: 0.9282 | X81: 7419.53 | Y81: 15412.69 | Z81: 1045.78
A82: P8180 | B82: Engenheiro agrimensor júnior | C82: mês | D82: 12002 | E82: 0.7984 | F82: 9582.4 | G82: 0.0614 | H82: 736.74 | I82: 0.0021 | J82: 25.51 | K82: 0 | L82: 0 | M82: 0 | N82: 0 | O82: 0.0004 | P82: 4.39 | Q82: 0 | R82: 0 | S82: 0.0246 | T82: 295.48 | U82: 0.0008 | V82: 9.98 | W82: 0.8877 | X82: 10654.5 | Y82: 22656.5 | Z82: 1072.1
A83: P8181 | B83: Engenheiro agrimensor pleno | C83: mês | D83: 12338.1 | E83: 0.7984 | F83: 9850.74 | G83: 0.0597 | H83: 736.74 | I83: 0.0021 | J83: 25.51 | K83: 0 | L83: 0 | M83: 0 | N83: 0 | O83: 0.0004 | P83: 4.39 | Q83: 0 | R83: 0 | S83: 0.0239 | T83: 295.48 | U83: 0.0008 | V83: 9.98 | W83: 0.8853 | X83: 10922.84 | Y83: 23260.94 | Z83: 1072.1
A84: P8182 | B84: Engenheiro agrimensor sênior | C84: mês | D84: 14173.3 | E84: 0.7984 | F84: 11315.96 | G84: 0.052 | H84: 736.74 | I84: 0.0018 | J84: 25.51 | K84: 0 | L84: 0 | M84: 0 | N84: 0 | O84: 0.0003 | P84: 4.39 | Q84: 0 | R84: 0 | S84: 0.0208 | T84: 295.48 | U84: 0.0007 | V84: 9.98 | W84: 0.874 | X84: 12388.07 | Y84: 26561.37 | Z84: 1072.11
A85: P8183 | B85: Geógrafo júnior | C85: mês | D85: 3904.44 | E85: 0.7962 | F85: 3108.72 | G85: 0.1887 | H85: 736.74 | I85: 0.0065 | J85: 25.51 | K85: 0 | L85: 0 | M85: 0 | N85: 0 | O85: 0.0008 | P85: 3.29 | Q85: 0 | R85: 0 | S85: 0.0757 | T85: 295.48 | U85: 0.0026 | V85: 9.98 | W85: 1.0705 | X85: 4179.72 | Y85: 8084.16 | Z85: 1071
A86: P8184 | B86: Geógrafo pleno | C86: mês | D86: 5205.92 | E86: 0.7962 | F86: 4144.96 | G86: 0.1415 | H86: 736.74 | I86: 0.0049 | J86: 25.51 | K86: 0 | L86: 0 | M86: 0 | N86: 0 | O86: 0.0006 | P86: 3.29 | Q86: 0 | R86: 0 | S86: 0.0568 | T86: 295.48 | U86: 0.0019 | V86: 9.98 | W86: 1.0019 | X86: 5215.96 | Y86: 10421.88 | Z86: 1071
A87: P8185 | B87: Geógrafo sênior | C87: mês | D87: 10039.58 | E87: 0.7962 | F87: 7993.51 | G87: 0.0734 | H87: 736.74 | I87: 0.0025 | J87: 25.51 | K87: 0 | L87: 0 | M87: 0 | N87: 0 | O87: 0.0003 | P87: 3.29 | Q87: 0 | R87: 0 | S87: 0.0294 | T87: 295.48 | U87: 0.001 | V87: 9.98 | W87: 0.9029 | X87: 9064.52 | Y87: 19104.1 | Z87: 1071.01
A88: P8186 | B88: Antropólogo júnior | C88: mês | D88: 3075.8 | E88: 0.8205 | F88: 2523.7 | G88: 0.2395 | H88: 736.74 | I88: 0.0083 | J88: 25.51 | K88: 0 | L88: 0 | M88: 0.0112 | N88: 34.48 | O88: 0.002 | P88: 6.14 | Q88: 0 | R88: 0 | S88: 0.0961 | T88: 295.48 | U88: 0.0032 | V88: 9.98 | W88: 1.1808 | X88: 3632.03 | Y88: 6707.84 | Z88: 1108.34
A89: P8187 | B89: Antropólogo pleno | C89: mês | D89: 4101.07 | E89: 0.8205 | F89: 3364.93 | G89: 0.1796 | H89: 736.74 | I89: 0.0062 | J89: 25.51 | K89: 0 | L89: 0 | M89: 0 | N89: 0 | O89: 0.0015 | P89: 6.14 | Q89: 0 | R89: 0 | S89: 0.072 | T89: 295.48 | U89: 0.0024 | V89: 9.98 | W89: 1.0823 | X89: 4438.78 | Y89: 8539.85 | Z89: 1073.85
A90: P8188 | B90: Antropólogo sênior | C90: mês | D90: 6246.53 | E90: 0.8205 | F90: 5125.28 | G90: 0.1179 | H90: 736.74 | I90: 0.0041 | J90: 25.51 | K90: 0 | L90: 0 | M90: 0 | N90: 0 | O90: 0.001 | P90: 6.14 | Q90: 0 | R90: 0 | S90: 0.0473 | T90: 295.48 | U90: 0.0016 | V90: 9.98 | W90: 0.9924 | X90: 6199.13 | Y90: 12445.66 | Z90: 1073.85
A91: P8189 | B91: Arqueólogo júnior | C91: mês | D91: 2815.27 | E91: 0.8089 | F91: 2277.27 | G91: 0.2617 | H91: 736.74 | I91: 0.0091 | J91: 25.51 | K91: 0 | L91: 0 | M91: 0.0178 | N91: 50.12 | O91: 0.0019 | P91: 5.28 | Q91: 0 | R91: 0 | S91: 0.105 | T91: 295.48 | U91: 0.0035 | V91: 9.98 | W91: 1.2078 | X91: 3400.38 | Y91: 6215.65 | Z91: 1123.11
A92: P8190 | B92: Arqueólogo pleno | C92: mês | D92: 3753.69 | E92: 0.8089 | F92: 3036.36 | G92: 0.1963 | H92: 736.74 | I92: 0.0068 | J92: 25.51 | K92: 0 | L92: 0 | M92: 0 | N92: 0 | O92: 0.0014 | P92: 5.28 | Q92: 0 | R92: 0 | S92: 0.0787 | T92: 295.48 | U92: 0.0027 | V92: 9.98 | W92: 1.0948 | X92: 4109.36 | Y92: 7863.04 | Z92: 1072.99
A93: P8191 | B93: Arqueólogo sênior | C93: mês | D93: 5706.15 | E93: 0.8089 | F93: 4615.71 | G93: 0.1291 | H93: 736.74 | I93: 0.0045 | J93: 25.51 | K93: 0 | L93: 0 | M93: 0 | N93: 0 | O93: 0.0009 | P93: 5.28 | Q93: 0 | R93: 0 | S93: 0.0518 | T93: 295.48 | U93: 0.0017 | V93: 9.98 | W93: 0.9969 | X93: 5688.71 | Y93: 11394.86 | Z93: 1073
A94: P8192 | B94: Historiador júnior | C94: mês | D94: 3885.3 | E94: 0.8367 | F94: 3250.83 | G94: 0.1896 | H94: 736.74 | I94: 0.0066 | J94: 25.51 | K94: 0 | L94: 0 | M94: 0 | N94: 0 | O94: 0.0018 | P94: 6.99 | Q94: 0 | R94: 0 | S94: 0.0761 | T94: 295.48 | U94: 0.0026 | V94: 9.98 | W94: 1.1133 | X94: 4325.53 | Y94: 8210.84 | Z94: 1074.71
A95: P8193 | B95: Historiador pleno | C95: mês | D95: 5180.4 | E95: 0.8367 | F95: 4334.44 | G95: 0.1422 | H95: 736.74 | I95: 0.0049 | J95: 25.51 | K95: 0 | L95: 0 | M95: 0 | N95: 0 | O95: 0.0013 | P95: 6.99 | Q95: 0 | R95: 0 | S95: 0.057 | T95: 295.48 | U95: 0.0019 | V95: 9.98 | W95: 1.0442 | X95: 5409.15 | Y95: 10589.55 | Z95: 1074.71
A96: P8194 | B96: Historiador sênior | C96: mês | D96: 8013.69 | E96: 0.8367 | F96: 6705.05 | G96: 0.0919 | H96: 736.74 | I96: 0.0032 | J96: 25.51 | K96: 0 | L96: 0 | M96: 0 | N96: 0 | O96: 0.0009 | P96: 6.99 | Q96: 0 | R96: 0 | S96: 0.0369 | T96: 295.48 | U96: 0.0012 | V96: 9.98 | W96: 0.9708 | X96: 7779.76 | Y96: 15793.45 | Z96: 1074.71
A97: P8195 | B97: Paleontólogo júnior | C97: mês | D97: 3075.8 | E97: 0.8205 | F97: 2523.7 | G97: 0.2395 | H97: 736.74 | I97: 0.0083 | J97: 25.51 | K97: 0 | L97: 0 | M97: 0.0112 | N97: 34.48 | O97: 0.002 | P97: 6.14 | Q97: 0 | R97: 0 | S97: 0.0961 | T97: 295.48 | U97: 0.0032 | V97: 9.98 | W97: 1.1808 | X97: 3632.03 | Y97: 6707.84 | Z97: 1108.34
A98: P8196 | B98: Paleontólogo pleno | C98: mês | D98: 4101.07 | E98: 0.8205 | F98: 3364.93 | G98: 0.1796 | H98: 736.74 | I98: 0.0062 | J98: 25.51 | K98: 0 | L98: 0 | M98: 0 | N98: 0 | O98: 0.0015 | P98: 6.14 | Q98: 0 | R98: 0 | S98: 0.072 | T98: 295.48 | U98: 0.0024 | V98: 9.98 | W98: 1.0823 | X98: 4438.78 | Y98: 8539.85 | Z98: 1073.85
A99: P8197 | B99: Paleontólogo sênior | C99: mês | D99: 6246.53 | E99: 0.8205 | F99: 5125.28 | G99: 0.1179 | H99: 736.74 | I99: 0.0041 | J99: 25.51 | K99: 0 | L99: 0 | M99: 0 | N99: 0 | O99: 0.001 | P99: 6.14 | Q99: 0 | R99: 0 | S99: 0.0473 | T99: 295.48 | U99: 0.0016 | V99: 9.98 | W99: 0.9924 | X99: 6199.13 | Y99: 12445.66 | Z99: 1073.85
A100: P8198 | B100: Sociólogo júnior | C100: mês | D100: 4027.98 | E100: 0.8389 | F100: 3379.07 | G100: 0.1829 | H100: 736.74 | I100: 0.0063 | J100: 25.51 | K100: 0 | L100: 0 | M100: 0 | N100: 0 | O100: 0.0018 | P100: 7.17 | Q100: 0 | R100: 0 | S100: 0.0734 | T100: 295.48 | U100: 0.0025 | V100: 9.98 | W100: 1.1058 | X100: 4453.96 | Y100: 8481.94 | Z100: 1074.89
A101: P8199 | B101: Sociólogo pleno | C101: mês | D101: 5370.64 | E101: 0.8389 | F101: 4505.43 | G101: 0.1372 | H101: 736.74 | I101: 0.0048 | J101: 25.51 | K101: 0 | L101: 0 | M101: 0 | N101: 0 | O101: 0.0013 | P101: 7.17 | Q101: 0 | R101: 0 | S101: 0.055 | T101: 295.48 | U101: 0.0019 | V101: 9.98 | W101: 1.039 | X101: 5580.31 | Y101: 10950.95 | Z101: 1074.88
A102: P8200 | B102: Sociólogo sênior | C102: mês | D102: 8040.47 | E102: 0.8389 | F102: 6745.15 | G102: 0.0916 | H102: 736.74 | I102: 0.0032 | J102: 25.51 | K102: 0 | L102: 0 | M102: 0 | N102: 0 | O102: 0.0009 | P102: 7.17 | Q102: 0 | R102: 0 | S102: 0.0367 | T102: 295.48 | U102: 0.0012 | V102: 9.98 | W102: 0.9726 | X102: 7820.04 | Y102: 15860.51 | Z102: 1074.89
A103: Profissionais horistas | Z103: 0
A104: P8250 | B104: Auxiliar - horista | C104: h | D104: 7.07 | E104: 1.1323 | F104: 8 | G104: 0.5452 | H104: 3.85 | I104: 0.0236 | J104: 0.17 | K104: 0.0012 | L104: 0.01 | M104: 0.0975 | N104: 0.69 | O104: 0.0048 | P104: 0.03 | Q104: 0 | R104: 0 | S104: 0.2244 | T104: 1.59 | U104: 0.0077 | V104: 0.05 | W104: 2.0368 | X104: 14.39 | Y104: 21.46 | Z104: 6.39
A105: P8251 | B105: Auxiliar de laboratório - horista | C105: h | D105: 7.82 | E105: 1.1317 | F105: 8.85 | G105: 0.4923 | H105: 3.85 | I105: 0.0213 | J105: 0.17 | K105: 0.0023 | L105: 0.02 | M105: 0.0811 | N105: 0.63 | O105: 0.0028 | P105: 0.02 | Q105: 0 | R105: 0 | S105: 0.2027 | T105: 1.59 | U105: 0.007 | V105: 0.05 | W105: 1.9411 | X105: 15.19 | Y105: 23.01 | Z105: 6.34
A106: P8255 | B106: Engenheiro de projetos júnior - horista | C106: h | D106: 54.55 | E106: 1.1314 | F106: 61.72 | G106: 0.0706 | H106: 3.85 | I106: 0.0025 | J106: 0.14 | K106: 0 | L106: 0 | M106: 0 | N106: 0 | O106: 0.0004 | P106: 0.02 | Q106: 0 | R106: 0 | S106: 0.0291 | T106: 1.59 | U106: 0.001 | V106: 0.05 | W106: 1.235 | X106: 67.37 | Y106: 121.93 | Z106: 5.66
A107: P8256 | B107: Engenheiro de projetos pleno - horista | C107: h | D107: 56.27 | E107: 1.1314 | F107: 63.67 | G107: 0.0684 | H107: 3.85 | I107: 0.0024 | J107: 0.14 | K107: 0 | L107: 0 | M107: 0 | N107: 0 | O107: 0.0004 | P107: 0.02 | Q107: 0 | R107: 0 | S107: 0.0282 | T107: 1.59 | U107: 0.001 | V107: 0.05 | W107: 1.2318 | X107: 69.32 | Y107: 125.59 | Z107: 5.65
A108: P8260 | B108: Laboratorista - horista | C108: h | D108: 10.43 | E108: 1.1317 | F108: 11.81 | G108: 0.3692 | H108: 3.85 | I108: 0.0147 | J108: 0.15 | K108: 0 | L108: 0 | M108: 0.0427 | N108: 0.45 | O108: 0.0021 | P108: 0.02 | Q108: 0 | R108: 0 | S108: 0.152 | T108: 1.59 | U108: 0.0052 | V108: 0.05 | W108: 1.7177 | X108: 17.92 | Y108: 28.35 | Z108: 6.11
A109: P8263 | B109: Motorista de caminhão - horista | C109: h | D109: 10.39 | E109: 1.1326 | F109: 11.77 | G109: 0.3707 | H109: 3.85 | I109: 0.016 | J109: 0.17 | K109: 0 | L109: 0 | M109: 0.0432 | N109: 0.45 | O109: 0.0023 | P109: 0.02 | Q109: 0 | R109: 0 | S109: 0.1526 | T109: 1.59 | U109: 0.0053 | V109: 0.05 | W109: 1.7227 | X109: 17.9 | Y109: 28.29 | Z109: 6.13
A110: P8264 | B110: Motorista de veículo leve - horista | C110: h | D110: 9.2 | E110: 1.1318 | F110: 10.42 | G110: 0.4185 | H110: 3.85 | I110: 0.0181 | J110: 0.17 | K110: 0 | L110: 0 | M110: 0.0581 | N110: 0.53 | O110: 0.0023 | P110: 0.02 | Q110: 0 | R110: 0 | S110: 0.1723 | T110: 1.59 | U110: 0.0059 | V110: 0.05 | W110: 1.8071 | X110: 16.63 | Y110: 25.83 | Z110: 6.21
A111: P8267 | B111: Sondador - horista | C111: h | D111: 9.04 | E111: 1.1316 | F111: 10.23 | G111: 0.4259 | H111: 3.85 | I111: 0.017 | J111: 0.15 | K111: 0 | L111: 0 | M111: 0.0604 | N111: 0.55 | O111: 0.0028 | P111: 0.03 | Q111: 0 | R111: 0 | S111: 0.1753 | T111: 1.59 | U111: 0.006 | V111: 0.05 | W111: 1.819 | X111: 16.45 | Y111: 25.49 | Z111: 6.22
A112: P8270 | B112: Técnico de obras - horista | C112: h | D112: 14.4 | E112: 1.1312 | F112: 16.29 | G112: 0.2675 | H112: 3.85 | I112: 0.0107 | J112: 0.15 | K112: 0 | L112: 0 | M112: 0.011 | N112: 0.16 | O112: 0.0014 | P112: 0.02 | Q112: 0 | R112: 0 | S112: 0.1101 | T112: 1.59 | U112: 0.0038 | V112: 0.05 | W112: 1.5358 | X112: 22.11 | Y112: 36.51 | Z112: 5.82
A113: Fonte: FGV IBRE | Z113: 0

Sheet COT. VANT (hidden)
A2: COTAÇÃO ORÇAMENTÁRIA DE LEVANTAMENTO PLANIALTIMÉTRICO POR MEIO DE VANT PARA ÁREA NA CIDADE DE PINDARÉ-MIRIM-MA
A3: MÊS/ANO DE REFERÊNCIA | B3: ÁREA DO PROJETO [ha] | C3: EMPRESA | D3: LOCALIDADE | E3: WEBSITE | F3: CONTATO | G3: AVALIAÇÃO TÉCNICA DA PROPOSTA | H3: PREÇO | I3: PREÇO UNITÁRIO | J3: RELAÇÃO CUSTO-BENEFÍCIO
A4: 2022-09-01 | B4: 50 | C4: DRONES SOLUTION | D4: SALVADOR-BA | E4: http://www.dronessolution.com.br/ | F4: contato@dronessolution.com.br | G4: SATISFATÓRIA | H4: 9800 | I4: =(H4/B4) -> 196 | J4: A
A5: 2022-09-01 | B5: 50 | C5: ERG | D5: BELO HORIZONTE-MG | E5: http://www.ergbh.com.br/ | F5: comercial@ergbh.com.br | G5: SATISFATÓRIA | H5: 13240.5 | I5: =(H5/B5) -> 264.81 | J5: B
A6: 2022-09-01 | B6: 50 | C6: CEPEMAR | D6: VITÓRIA-ES | E6: http://www.cepemar.com.br/ | F6: comercial@cepemar.com.br | G6: SATISFATÓRIA | H6: 63000 | I6: =(H6/B6) -> 1260 | J6: C
A8: Observações | B8: 1. Na cotação acima já estão iclusos: Planejamento Aerotogramétrico, Voo Aerotoforamétrico, Apoio de Campo, Aerotriangulação, Restituição, MDT, MDS, Ortofotos, Edição/Revisão e Entrega Final. | G8: CV com todos valores: | H8: =STDEVA(H4:H6)/AVERAGE(H4:H6) -> 1.038054932
B9: 2. INCONCLUSIVA: não apresentou o orçamento de forma detalhada. | G9: CV tirando o maior valor: | H9: =STDEVA(H4:H5)/AVERAGE(H4:H5) -> 0.2111760492
B10: 3. SATISFATÓRIA: apresentou, no mínimo, os requisitos básicos de um orçamento. | G10: Média tirando o maior valor: | H10: =AVERAGE(H4:H5) -> 11520.25 | I10: Valor para a área de 65ha
B11: 4-Para o valor do serviço de Vant, considerou-se a média tirando o maior valor das cotações recebidas, pois o CV (coeficiente de variação) está muito elevado com as 3 cotaçoes.
B12: 5-As cotações recebidas foram utilizadas para o serviço de levantamento do Ramal do Manga no Amapá, referente a um trecho de 6,5km de rodovia, com área total estimadade de 65ha.
B13: Dessa forma, para a cotação representativa deste serviço, realizou-se a parametrização proporcional a área de estudo do serviço a ser realizado.
B15: Portanto:
C16: =I10 -> Valor para a área de 65ha | D16: =H10 -> 11520.25
C17: Valor unitário para a área de 1ha | D17: =D16/65 -> 177.2346154
